Cogmind - Beta 16.1 @@@ ROGUE MODE // 2026.04.18 @ 21:45:49 Player: Benkyo Result: Destroyed by C-57 Dissector with Dual-blade Saw Performance ------------- Evolutions (9) 4500 Regions Visited (29) 5800 Robots Destroyed (296) 1480 Value Destroyed (12066) 12066 Prototype IDs (165) 3300 Alien Tech Used (4) 800 Bonus (42241) 42241 TOTAL SCORE: 70187 Bonus ------- Triggered High Security 500 High Alert Combat Kills 2786 Follower Combat Kills 16124 Entered Garrisons 1200 Used RIF Installer 4500 Network Hubs Disabled 600 Met Zhirov 300 Built Enhanced Grunts 300 A7 Reached Mainframe 300 Met R17 at Cetus 500 Met R17 at Research 2000 Scanned by Researcher 500 Destroyed Superfortress 15000 Friendly Fire -2369 Cogmind --------- Core Integrity 0/1600 Matter 51/300 Energy 64/100 System Corruption 5% Temperature Cool (0) Movement Core (50) Location -1/Access Parts ------- > --- POWER (3) -------- (None) > --- PROPULSION (4) --- (None) > --- UTILITY (13) ----- (None) > --- WEAPON (6) ------- (None) > --- INVENTORY (5) ---- Light Quantum Reactor Advanced Component Analysis Suite Peak State ------------ > --- POWER ------------ Antimatter Reactor Improved Quantum Reactor > --- PROPULSION ------- Experimental Armored Exoskeleton > --- UTILITY ---------- Concept Phasing Heat Sink Concept Thermoelectric Network Concept Antigrav Storage Unit Concept Networked Targeting System Experimental Armor Integrity Analyzer SHELL Armor AEGIS Remote Shield Relay Coupler [Hunter] Relay Coupler [Proto] Concept Matter Streamer > --- WEAPON ----------- Concept Rapid Grenade Launcher 1B-0RG's Assimilator > --- INVENTORY -------- Concept Chromion Battery Concept NT7 Matterbank Concept NT7 Matterbank Advanced Sensor Array Long-range Terrain Scanner Concept RG22 Armor Experimental Force Field Concept Antimissile System Concept Network Penetrator Improved Component Analysis Suite Crosscalibrator Subatomic Replicator Concept Navigation Harness Null Cannon Concept Plasma Driver Concept Miniperforator Concept Helical Railcannon Concept Heavy Railcannon Advanced Remote Datajack Improved Plasma Cutter Concept Deflector Sword [Rating: 278] Favorites ----------- Power Antimatter Reactor Engine Ion Engine Power Core Fission Core Reactor Antimatter Reactor Propulsion Light Treads Treads Light Treads Leg Arachnoskeleton Wheel Compact Wheel Hover Unit Improved Linear Gravjet Flight Unit Field Propulsion Array Utility Huge Storage Unit Device Transmission Jammer Storage Huge Storage Unit Processor Advanced Terrain Scan Processor Hackware Relay Coupler [NC] Protection Light Armor Plating Weapon Autogun Energy Gun Heavy Riot Gun Energy Cannon Null Cannon Ballistic Gun Autogun Ballistic Cannon Slug Cannon Launcher Missile Launcher Special Weapon Multitool Impact Weapon Thunder Hammer Slashing Weapon Concept Deflector Sword Special Melee Weapon 1B-0RG's Assimilator Build | -11 -10 -10 -8 -8 -8 -8 -7 -7 -6 -6 -5 -5 -5 -5 -5 -5 -4 -4 -4 -4 -4 -4 -4 -3 -3 -2 -2 -2 -1 ------- Run | Yrd Mat Sub Mat Gar Mat Gar Fac Gar Fac Gar Fac Was Fac Gar Fac Gar Fac Was Fac Ext Cet Arc Hub Res Tes Res Qua Frg Acc Slots Evolved 18 | . . . 4 . . . 2 . 2 . 2 . . . . . 2 . . . . . . 2 . 2 . . 2 Power 2 | . . . . . . . . . . . . . . . . . 1 . . . . . . . . . . . 1 Propulsion 1 | . . . 1 . . . . . . . . . . . . . . . . . . . . . . . . . . Utility 11 | . . . . . . . 1 . 2 . 2 . . . . . 1 . . . . . . 2 . 2 . . 1 Weapon 4 | . . . 3 . . . 1 . . . . . . . . . . . . . . . . . . . . . . Parts Attached 212 | 7 8 9 25 8 8 6 19 3 2 4 5 5 1 . . 2 7 1 1 5 6 . 14 4 6 4 3 31 18 Power 22 | 1 . 1 3 2 . 2 3 1 . 1 . . . . . . . . . 1 1 . 1 . . . . 2 3 Engine 8 | 1 . 1 2 1 . . 3 . . . . . . . . . . . . . . . . . . . . . . Core 4 | . . . 1 1 . 2 . . . . . . . . . . . . . . . . . . . . . . . Reactor 10 | . . . . . . . . 1 . 1 . . . . . . . . . 1 1 . 1 . . . . 2 3 Propulsion 43 | 2 . 1 11 3 . 1 7 . . . . 1 . . . 1 3 . 1 2 2 . 2 . . 1 . 1 4 Treads 19 | 2 . 1 11 3 . 1 . . . . . . . . . . . . . . 1 . . . . . . . . Leg 9 | . . . . . . . 7 . . . . . . . . 1 . . . . . . . . . . . 1 . Wheel 11 | . . . . . . . . . . . . 1 . . . . 3 . 1 2 1 . 2 . . 1 . . . Hover 2 | . . . . . . . . . . . . . . . . . . . . . . . . . . . . . 2 Flight 2 | . . . . . . . . . . . . . . . . . . . . . . . . . . . . . 2 Utility 93 | 2 3 3 3 1 4 1 4 2 2 3 4 4 . . . 1 4 . . 1 1 . 11 4 5 2 1 23 4 Device 47 | 1 . 2 2 1 3 1 2 2 1 . 1 1 . . . 1 3 . . 1 . . 4 1 2 . 1 16 1 Storage 17 | 1 2 . 1 . 1 . . . . 1 1 2 . . . . 1 . . . . . 2 1 . . . 4 . Processor 10 | . . . . . . . 1 . . . . . . . . . . . . . . . 3 1 . . . 3 2 Hackware 9 | . . . . . . . . . 1 1 2 . . . . . . . . . . . 1 1 . 2 . . 1 Protection 10 | . 1 1 . . . . 1 . . 1 . 1 . . . . . . . . 1 . 1 . 3 . . . . Artifact . | . . . . . . . . . . . . . . . . . . . . . . . . . . . . . . Weapon 54 | 2 5 4 8 2 4 2 5 . . . 1 . 1 . . . . 1 . 1 2 . . . 1 1 2 5 7 Energy Gun 3 | . . 2 . . . . . . . . . . . . . . . . . . 1 . . . . . . . . Energy Cannon 7 | . . . . . . . 1 . . . . . . . . . . . . . . . . . . 1 1 1 3 Ballistic Gun 22 | 2 3 1 8 1 4 1 . . . . . . . . . . . . . . 1 . . . . . . . 1 Ballistic Cannon 7 | . . 1 . 1 . . 1 . . . . . . . . . . . . . . . . . . . . 2 2 Launcher 5 | . 1 . . . . 1 . . . . . . . . . . . 1 . . . . . . . . . 2 . Special Weapon 6 | . 1 . . . . . 1 . . . 1 . 1 . . . . . . 1 . . . . . . 1 . . Impact Weapon 2 | . . . . . . . 1 . . . . . . . . . . . . . . . . . 1 . . . . Slashing Weapon 1 | . . . . . . . . . . . . . . . . . . . . . . . . . . . . . 1 Piercing Weapon . | . . . . . . . . . . . . . . . . . . . . . . . . . . . . . . Special Melee Weapon 1 | . . . . . . . 1 . . . . . . . . . . . . . . . . . . . . . . Unidentified Prototypes 42 | . . . 1 . . . 6 . . . . . . . . . . . . . 4 . 6 1 5 . . 14 5 Parts Lost 49 | . 1 4 6 . . 5 1 . . 2 . . . . . 1 1 . . 1 . . . . . . . 6 21 Power 10 | . . 1 1 . . 2 . . . 1 . . . . . . . . . . . . . . . . . 1 4 Propulsion 7 | . . 1 1 . . . 1 . . . . . . . . 1 . . . . . . . . . . . . 3 Utility 15 | . 1 2 . . . . . . . 1 . . . . . . 1 . . 1 . . . . . . . 2 7 Weapon 17 | . . . 4 . . 3 . . . . . . . . . . . . . . . . . . . . . 3 7 Highest Loss Streak 11 | . 1 2 4 . . 3 1 . . 2 . . . . . 1 1 . . 1 . . . . . . . 4 11 To Critical Strikes 1 | . . . . . . . . . . . . . . . . . . . . . . . . . . . . . 1 Average Backups 19 | 4 20 18 18 18 19 18 21 24 23 23 21 19 20 20 20 19 19 20 19 19 19 20 19 19 19 18 19 22 13 Power . | . 1 . . 1 . . 1 1 1 . 1 1 1 1 1 1 1 1 1 1 . . . . . . . . . Propulsion 2 | 1 3 3 4 4 3 4 1 2 3 3 3 2 1 1 1 2 1 2 2 1 . . . 1 . . . . . Utility 9 | 1 6 4 3 5 8 10 12 14 12 11 10 11 12 13 12 11 12 12 11 11 12 13 12 11 12 12 11 13 9 Weapon 5 | 1 9 8 7 6 4 . 3 5 5 5 4 3 3 3 3 3 3 3 3 3 3 4 4 4 4 3 3 5 1 Tool/Special . | . . . . . . . . . . . . . . . . . . . . . . . . . . . . . . Unused Backups 106 | . 3 12 14 1 2 2 4 1 . . 6 4 3 . 1 1 . . . 2 1 . 1 1 8 . 3 24 12 Power 5 | . . 1 . . 1 . . 1 . . . 2 . . . . . . . . . . . . . . . . . Propulsion 14 | . . 2 3 . . . 2 . . . 2 1 1 . . . . . . 1 1 . . . 1 . . . . Utility 61 | . 2 3 5 1 1 1 2 . . . 4 1 2 . 1 1 . . . 1 . . 1 . 4 . 3 20 8 Weapon 24 | . 1 6 5 . . 1 . . . . . . . . . . . . . . . . . 1 3 . . 4 3 Tool/Special 2 | . . . 1 . . . . . . . . . . . . . . . . . . . . . . . . . 1 Average Slot Usage (%) 83 | . 99 96 99 99 100 98 58 56 60 60 64 65 65 65 65 65 77 80 80 79 79 80 79 80 80 75 75 69 57 Engine 4 | . 14 12 7 4 . . 3 5 . . . . . . . . 4 5 5 . . . . . . . . . . Core 1 | . . . 1 4 9 8 2 . . . . . . . . . . . . . . . . . . . . . . Reactor 3 | . . . . . . . . . 5 5 5 5 5 5 5 5 5 5 5 9 10 10 10 9 9 8 8 7 4 Treads 13 | . 27 28 26 26 27 26 . . . . . . . . . . . . . . . . . . . . . . . Leg 3 | . . . . . . . 21 18 16 16 15 14 15 15 15 14 3 . . . . . . . . . . 2 2 Wheel 4 | . . . . . . . . . . . . . . . . . 14 20 20 20 19 20 20 18 18 16 16 7 . Device 9 | . . 7 9 9 9 9 5 8 11 12 9 9 10 10 9 10 12 10 10 12 10 10 11 13 12 8 8 13 20 Storage 8 | . 14 12 9 9 9 9 6 6 5 5 5 6 5 5 5 5 5 5 5 5 5 5 5 4 4 4 4 4 2 Processor 1 | . . . . . . . 1 . . . . . . . . . . . . . . . 5 8 9 8 8 6 1 Hackware 5 | . . . . . . . . . 4 5 14 15 15 15 15 15 15 15 15 15 15 15 15 17 18 16 16 10 3 Protection 4 | . 12 6 . . . . 4 3 5 3 5 3 5 5 5 5 5 10 10 7 9 10 3 . . 3 4 4 2 Ballistic Gun 16 | . 27 25 44 42 45 30 . . . . . . . . . . . . . . . . . . . . . . 1 Ballistic Cannon 1 | . . 2 . 2 . 8 2 . . . . . . . . . . . . . . . . . . . . . 3 Impact Weapon 1 | . . . . . . . 2 6 5 5 5 5 4 5 1 5 5 . 2 4 5 3 3 3 3 3 2 . . Special Melee Weapon 2 | . . . . . . . 5 6 5 5 5 5 5 5 5 5 5 5 5 5 5 5 5 4 4 4 4 3 . Peak Build Rating 278 | 7 12 24 44 49 48 46 136 139 147 148 154 154 153 153 150 153 138 138 145 148 165 150 157 166 177 201 209 278 275 Average Rating 100 | 5 10 18 40 46 46 42 121 134 146 146 151 148 152 150 146 148 133 135 139 146 149 149 149 163 164 191 199 247 217 On Entrance 121 | . 7 12 21 44 47 44 42 134 139 147 146 149 149 153 150 150 133 138 136 140 148 150 149 151 164 170 196 209 222 Avg Prop Armor Cover (%) 13 | 31 . . . . . . . . . . . . . . . 4 4 . . . . . . . . . . . 18 Naked Turns 8 | . . . . . . . . . . . . . . . . . . . . . . . . . . . . . 8 Heaviest Build 190 | 14 94 98 107 110 108 110 162 165 173 173 170 128 123 123 123 122 152 155 155 165 166 166 159 157 157 181 190 190 172 Greatest Support 123 | 40 40 40 69 66 64 64 114 114 114 114 123 123 123 123 123 123 73 64 64 64 64 64 64 64 64 64 64 100 100 Greatest Overweight (x) 5 | 2 2 2 1 2 1 2 1 1 1 1 1 1 . . . 1 3 2 2 2 5 2 2 2 2 2 2 2 1 Average Overweight (x) 1 | . 1 1 1 1 1 1 1 1 1 1 . . . . . . 1 2 2 2 2 2 2 2 2 2 2 1 . Largest Inventory Capacity 25 | 8 25 25 25 25 25 25 25 25 25 25 25 20 20 20 20 20 20 20 20 20 20 20 20 20 20 20 20 25 25 Average Capacity 22 | 7 21 23 25 25 25 25 25 25 25 25 23 20 20 20 20 20 20 20 20 20 20 20 20 20 20 20 20 24 20 Most Carried 25 | 7 25 25 25 25 25 25 25 25 24 25 25 20 20 20 20 20 20 20 20 20 20 20 20 20 20 20 20 25 21 Average Carried 22 | 4 20 22 24 24 24 24 21 24 23 23 21 19 19 20 19 19 19 20 19 19 19 20 19 19 19 18 19 23 14 Final Capacity 25 | 8 25 25 25 25 25 25 25 25 25 25 20 20 20 20 20 20 20 20 20 20 20 20 20 20 20 20 20 25 5 Final Carried 25 | 7 24 25 25 25 25 25 25 25 23 23 20 20 20 20 20 20 20 20 20 20 20 20 20 20 20 19 20 21 2 Class Distribution -------------------- 32% | Mutant 17% | Bothacker-Mutant 14% | Botlord-Mutant 9% | Scavenger-Gunner 8% | Gunner 5% | Hacker-Mutant 4% | Botlord-Assassin Dominant Class ---------------- Mutant | -10/Materials Mutant | -10/Subcaves Scavenger-Gunner | -8/Materials Gunner | -8/Garrison Gunner | -8/Materials Bothacker-Gunner | -8/Garrison Bothacker-Mutant | -7/Factory Bothacker-Mutant | -7/Garrison Bothacker-Mutant | -6/Factory Bothacker-Mutant | -6/Garrison Bothacker-Mutant | -5/Factory Bothacker-Mutant | -5/Waste Bothacker-Mutant | -5/Factory Bothacker-Mutant | -5/Garrison Bothacker-Mutant | -5/Factory Botlord-Mutant | -5/Garrison Botlord-Mutant | -4/Factory Botlord-Mutant | -4/Waste Botlord-Mutant | -4/Factory Botlord-Mutant | -4/Extension Botlord-Mutant | -4/Cetus Botlord-Mutant | -4/Archives Botlord-Mutant | -4/Hub_04(d) Botlord-Assassin | -3/Research Botlord-Assassin | -3/Testing Hacker-Assassin | -2/Research Hacker-Mutant | -2/Quarantine Hacker-Mutant | -2/Protoforge Skirmisher | -1/Access Resources | -11 -10 -10 -8 -8 -8 -8 -7 -7 -6 -6 -5 -5 -5 -5 -5 -5 -4 -4 -4 -4 -4 -4 -4 -3 -3 -2 -2 -2 -1 ----------- Run | Yrd Mat Sub Mat Gar Mat Gar Fac Gar Fac Gar Fac Was Fac Gar Fac Gar Fac Was Fac Ext Cet Arc Hub Res Tes Res Qua Frg Acc Matter Collected 31984 | 306 506 662 2335 1040 1519 985 3309 920 294 1856 255 2075 560 34 556 1169 2155 763 100 1287 130 . 1827 588 284 70 193 5526 680 Remotely 10974 | . . . . . . 37 332 408 . 894 130 2075 . . . 315 867 763 . 915 . . 730 . . . . 3011 497 Salvage Created 13517 | 142 451 529 2153 1151 1817 581 488 129 9 124 252 558 362 . 108 . 292 1192 . 824 . . 59 153 232 19 164 695 1033 Parts 512 | 8 34 26 122 58 93 46 11 1 . . . 1 1 . 3 . 7 5 . 7 . . . 3 5 . 5 26 50 Haulers Intercepted 9 | . 1 . 6 . . . 1 . . . . . . . . . . . . . . . . . 1 . . . . Recyclers Shooed 7 | . . . 2 . . . 1 . . . 1 . 2 . . . . . . . . . . . . . . . 1 Parts Field Recycled . | . . . . . . . . . . . . . . . . . . . . . . . . . . . . . . Retrieved Matter . | . . . . . . . . . . . . . . . . . . . . . . . . . . . . . . Parts Self-Destructed 19 | . . 19 . . . . . . . . . . . . . . . . . . . . . . . . . . . Prevented . | . . . . . . . . . . . . . . . . . . . . . . . . . . . . . . Parts Restored 1 | . . . . . . . . . . . . . . . . . . . . . . . . . . . . 1 . Faulty 1 | . . . . . . . . . . . . . . . . . . . . . . . . . . . . 1 . Kills | -11 -10 -10 -8 -8 -8 -8 -7 -7 -6 -6 -5 -5 -5 -5 -5 -5 -4 -4 -4 -4 -4 -4 -4 -3 -3 -2 -2 -2 -1 ------- Run | Yrd Mat Sub Mat Gar Mat Gar Fac Gar Fac Gar Fac Was Fac Gar Fac Gar Fac Was Fac Ext Cet Arc Hub Res Tes Res Qua Frg Acc Combat Hostiles Destroyed 204 | . 11 9 32 32 28 30 3 4 . 1 . . . . 2 . 1 5 . 1 . . 1 . . . 3 28 13 Melee 4 | . . . . . . . 1 . . . . . . . 1 . 1 . . . . . . . . . 1 . . Guns 125 | . 11 9 32 32 28 12 . . . . . . . . . . . . . . . . . . . . . . 1 Cannons 33 | . . . . . . 7 1 1 . . . . . . . . . . . . . . . . . . 1 11 12 AOE 31 | . . . . . . 11 . . . . . . . . . . . 5 . . . . . . . . . 15 . Classes Destroyed 28 | 2 6 4 4 2 1 1 . . . . . 1 . . . . . 1 . . . . . . 1 . . 4 1 Worker 19 | . 1 . 5 . 3 . 2 . 1 . . . . . . . 1 . . . . . . . 3 . . 2 1 Builder 10 | . . . 1 . . . 1 . . . . . . . . . . 1 . . . . . . . 1 . 2 4 Tunneler 4 | 2 . . 1 . . . . . . . . . . . . . . . . . . . . 1 . . . . . Hauler 9 | . 1 . 6 . . . 1 . . . . . . . . . . . . . . . . . 1 . . . . Recycler 21 | 1 . . 2 . 1 . 3 . . . 2 . 3 . . . 2 . . 6 . . . 1 . . . . . Mechanic 3 | . . . 1 . 1 . 1 . . . . . . . . . . . . . . . . . . . . . . Operator 3 | . 1 . 1 . 1 . . . . . . . . . . . . . . . . . . . . . . . . Drone 3 | . . . . . . . . . . . . . . . . . . . . . . . . . . . . 3 . Watcher 17 | . 3 . 5 . 5 . . . . . . . . . . . . . . . . . . 1 1 . . 1 1 Swarmer 46 | . 6 . 6 11 . 15 . 2 . . . . . . . . 1 . . . . . . . . . 2 3 . Saboteur 5 | . . . . 2 . 3 . . . . . . . . . . . . . . . . . . . . . . . Grunt 62 | . 5 . 15 8 16 4 1 2 . 1 . . . . 2 . . . . . . . 1 . . . 1 . 6 Brawler 3 | . . . . . 1 1 . . . . . . . . . . . . . . . . . . . . . . 1 Duelist 10 | . . . 1 3 3 2 1 . . . . . . . . . . . . . . . . . . . . . . Researcher 2 | . . . . . . . . . . . . . . . . . . . . . . . . . 1 . . 1 . Sentry 26 | . . 1 8 7 8 1 . . . . . . . . . . . . . 1 . . . . . . . . . Demolisher 1 | . . . . . . . . . . . . . . . . . . . . . . . . . . . . . 1 Specialist 7 | . . . . 1 . . . . . . . . . . . . . . . . . . . . . . . 6 . Hunter 8 | . . . 2 . . 1 . . . . . . . . . . . . . . . . . . . . . 2 3 Programmer 8 | . . . . . . 3 1 . . . . . . . . . . . . . . . . . . . . 4 . Compactor 5 | . . . . . . . . . . . . . . . . . . 5 . . . . . . . . . . . Lightning 1 | . . . . . . . . . . . . . . . . . . . . . . . . . . . . 1 . Hotshot 3 | . . . . . . . . . . . . . . . . . . . . . . . . . . . . 3 . Decapitator 4 | . . . . . . . . . . . . . . . . . . . . . . . . . . . . 4 . Immortal 1 | . . . . . . . . . . . . . . . . . . . . . . . . . . . . 1 . Striker 2 | . . . . . . . . . . . . . . . . . . . . . . . . . . . . 2 . Executioner 2 | . . . . . . . . . . . . . . . . . . . . . . . . . . . . . 2 V-Series 1 | . . . . . . . . . . . . . . . . . . . . . . . . . . . . 1 . Artisan 1 | . . 1 . . . . . . . . . . . . . . . . . . . . . . . . . . . Subdweller 8 | . . 8 . . . . . . . . . . . . . . . . . . . . . . . . . . . Scientist 1 | . . 1 . . . . . . . . . . . . . . . . . . . . . . . . . . . Martyr 1 | . . . . . . . . . . . . 1 . . . . . . . . . . . . . . . . . Best Kill Streak 25 | 1 4 2 9 9 7 8 2 2 1 1 1 . 1 . 2 . 1 4 . 2 . . 1 1 1 1 2 25 6 Combat Bots Only 21 | . 3 2 8 9 4 8 1 2 . 1 . . . . 2 . 1 4 . 1 . . 1 . . . 2 21 6 Max Kills in Single Turn 3 | 1 1 1 2 3 3 3 1 1 1 1 1 1 1 . 1 . 1 2 . 1 . . 1 1 1 1 1 3 3 Gunslinging 2 | . . . 1 2 1 . . . . . . . . . . . . . . . . . . . . . . . . Exploded 3 | . . . . . . 3 . . . . . . . . . . . 2 . . . . . . . . . 2 . Melee 1 | . . . . . . . 1 . . . . . . . 1 . 1 . . . . . . . . . 1 . . Uniques/NPCs Destroyed 1 | . . . . . . . . . . . . . . . . . . . . . . . . . . . . 1 . Superfortress (-2/Protoforge) Combat | -11 -10 -10 -8 -8 -8 -8 -7 -7 -6 -6 -5 -5 -5 -5 -5 -5 -4 -4 -4 -4 -4 -4 -4 -3 -3 -2 -2 -2 -1 -------- Run | Yrd Mat Sub Mat Gar Mat Gar Fac Gar Fac Gar Fac Was Fac Gar Fac Gar Fac Was Fac Ext Cet Arc Hub Res Tes Res Qua Frg Acc Hostile Shots Fired 1606 | . 62 61 155 76 73 82 177 25 9 51 . . 1 5 11 36 22 . . 26 2 . 11 4 6 . 16 322 373 Missed 493 | . 23 19 37 20 22 22 63 10 5 10 . . 1 2 7 12 9 . . 13 . . 4 2 3 . 4 97 108 Deflected 20 | . . . . . . . . . . . . . . . . . . . . . . . . . . . . . 20 Hits 1113 | . 39 42 118 56 51 60 114 15 4 41 . . . 3 4 24 13 . . 13 2 . 7 2 3 . 12 225 265 Melee 36 | . . . . 5 1 2 3 . . . . . . . . 3 . . . . . . . . . . . 7 15 Projectile 1077 | . 39 42 118 51 50 58 111 15 4 41 . . . 3 4 21 13 . . 13 2 . 7 2 3 . 12 218 250 AOE 36 | . . . . . . . 1 . . . . . . . . 2 . . . . . . . . . . . 3 30 Critical Strikes 55 | . . 4 8 3 1 1 2 . . . . . . . . 3 1 . . . . . . . . . . 16 16 Part Disruptions 1 | . . . . . . . . . . . . . . . . . . . . . . . . . . . . . 1 Damage Taken 22480 | . 413 871 1571 799 781 746 1704 305 39 632 . . 151 68 103 619 391 29 38 183 54 . 291 52 21 . 292 4425 7902 Core 3332 | . 57 40 117 61 113 40 439 16 16 97 . . 42 . 16 89 82 2 22 36 28 . 107 . 11 . 16 258 1627 Absorbed by Shields 3033 | . . . . . . . . 13 21 85 . . . . . . 65 29 16 163 26 . 157 54 21 . 136 1416 831 Ignored by Resistances 1324 | . . . . . . . 154 14 14 11 . . . . . . . . . . . . . . . . . 626 505 Regen/Repaired (Parts) 4732 | . 221 . 196 . . . 359 133 5 116 . 164 68 . . 393 108 . 8 24 7 . 22 14 . . 264 1684 946 Core Remaining (%) 72 | 100 . 61 . . . 39 . 35 . 86 . . . . . 85 . . . . . . 75 . 99 . . 72 . Volleys Fired 607 | 9 52 58 95 70 58 60 8 . . . . . 3 . . . . 11 . . . 2 . . 16 6 13 104 42 Largest 5 | 2 2 2 5 5 5 5 1 . . . . . 1 . . . . 1 . . . 1 . . 1 1 1 5 5 Hottest 493 | 40 100 110 130 143 124 142 40 . . . . . 7 . . . . 45 . . . 7 . . 35 130 130 490 493 Shots Fired 1730 | 18 102 109 445 229 290 163 8 . . . . . 3 . . . . 11 . . . 2 . . 16 6 13 208 107 Gun 1326 | 18 100 102 445 201 290 124 . . . . . . . . . . . . . . . . . . 16 . . . 30 Cannon 350 | . . 7 . 28 . 29 8 . . . . . . . . . . . . . . . . . . 6 12 183 77 Launcher 47 | . 1 . . . . 10 . . . . . . . . . . . 11 . . . . . . . . . 25 . Special 7 | . 1 . . . . . . . . . . . 3 . . . . . . . . 2 . . . . 1 . . Kinetic 1498 | 18 100 103 445 229 290 153 8 . . . . . . . . . . . . . . . . . 16 . . 58 78 Thermal 167 | . 1 . . . . . . . . . . . . . . . . . . . . . . . . 6 6 125 29 Explosive 47 | . 1 . . . . 10 . . . . . . . . . . . 11 . . . . . . . . . 25 . Electromagnetic 12 | . . 6 . . . . . . . . . . . . . . . . . . . . . . . . 6 . . Robot Hit Streak 24 | 12 9 8 14 16 16 10 3 . . . . . 6 . . . . 14 . . . 16 . . 19 . 22 24 9 Robot Miss Streak 12 | 2 5 3 8 4 4 12 . . . . . . . . . . . 3 . . . . . . . . 2 4 5 Penetration Max 2 | . . . 1 1 1 1 . . . . . . . . . . . . . . . . . . . . . 2 2 Secondary Targets 21 | . 2 . 7 9 3 . . . . . . . . . . . . . . . . . . . . . . . . Max Gunslinging Chain 2 | . 1 . 2 2 1 . . . . . . . . . . . . . . . . . . . . . . . . Shots Hit Robots 1019 | 13 56 75 241 122 177 74 15 5 2 6 3 8 6 . 2 3 7 9 . 10 . 2 1 3 8 1 13 107 50 Core Hits 598 | 5 28 21 100 52 81 47 5 . . . . . . . . . 3 21 . 1 . . . 1 5 . 7 188 33 Critical Kills 23 | . 1 . 1 2 . 3 2 . . . . . . . . . . . . 1 . . . . 1 . . 6 6 Critical Parts Destroyed 52 | . . . 1 2 3 2 3 3 . 1 . 2 . . 2 . 1 . . 5 . . 1 . . . . 20 6 Critical Strikes 94 | . 1 . 2 4 3 5 5 3 . 1 . 2 . . 2 . 1 . . 6 . . 1 . 1 . . 44 13 Meltdown 2 | . . . . . . . . . . . . . . . . . . . . . . . . . . . . 2 . Destroy 67 | . 1 . 2 4 3 5 . . . . . . . . . . . . . . . . . . . . . 39 13 Blast 3 | . . . . . . . . . . . . . . . . . . . . . . . . . . . . 3 . Smash 22 | . . . . . . . 5 3 . 1 . 2 . . 2 . 1 . . 6 . . 1 . 1 . . . . Melee Attacks 268 | . . . . . . . 14 114 6 13 5 8 6 . 5 14 8 . 2 13 . 16 7 9 20 2 6 . . Impact 268 | . . . . . . . 14 114 6 13 5 8 6 . 5 14 8 . 2 13 . 16 7 9 20 2 6 . . Slashing . | . . . . . . . . . . . . . . . . . . . . . . . . . . . . . . Piercing . | . . . . . . . . . . . . . . . . . . . . . . . . . . . . . . Sneak Attacks 37 | . . . . . . . 9 . 2 . 3 1 3 . . . 4 . . 6 . . . 2 5 1 1 . . Combat Hostiles . | . . . . . . . . . . . . . . . . . . . . . . . . . . . . . . Follow-up Attacks . | . . . . . . . . . . . . . . . . . . . . . . . . . . . . . . Damage Inflicted 42283 | 133 796 1143 4294 2433 3207 2596 1210 306 223 408 287 1014 400 . 149 222 570 2754 . 817 . . 75 213 651 110 625 13993 3654 Guns 13162 | 133 761 1143 4294 2203 3207 877 . . . . . . . . . . . . . . . . . . 72 . . . 472 Cannons 10122 | . . . . 230 . 382 28 . . . . . . . . . . . . . . . . . . . 406 5894 3182 Explosions 12204 | . 25 . . . . 1337 . . . . . . . . . . . 2754 . . . . . . . . . 8088 . Melee 6774 | . . . . . . . 1182 306 223 408 287 1014 400 . 149 222 570 . . 817 . . 75 213 579 110 219 . . Ramming 21 | . 10 . . . . . . . . . . . . . . . . . . . . . . . . . . 11 . Kinetic 18522 | 133 761 1054 4294 2433 3207 1259 28 . . . . . . . . . . . . . . . . . 72 . . 2452 2829 Thermal 4500 | . . . . . . . . . . . . . . . . . . . . . . . . . . . 233 3442 825 Explosive 12204 | . 25 . . . . 1337 . . . . . . . . . . . 2754 . . . . . . . . . 8088 . Electromagnetic 262 | . . 89 . . . . . . . . . . . . . . . . . . . . . . . . 173 . . Impact 6774 | . . . . . . . 1182 306 223 408 287 1014 400 . 149 222 570 . . 817 . . 75 213 579 110 219 . . Slashing . | . . . . . . . . . . . . . . . . . . . . . . . . . . . . . . Piercing . | . . . . . . . . . . . . . . . . . . . . . . . . . . . . . . Highest Corruption 9 | . . . . . . 3 2 2 . 1 . . . . 1 1 . . . . . . 1 . . . 1 9 5 Average Corruption 1 | . . . . . . 2 1 1 . 1 . . . . 1 1 . . . . . . 1 . . . 1 1 1 Corruption Purged 3 | . . . . . . . . 2 . . . . . . . . . . . . . . 1 . . . . . . Corruption Blocked . | . . . . . . . . . . . . . . . . . . . . . . . . . . . . . . Effects 95 | . . . . . . 26 13 7 . 1 . . . . 1 1 . . . . . . 8 . . . 2 31 5 Message Errors 24 | . . . . . . 7 1 2 . . . . . . . . . . . . . . 3 . . . . 10 1 Matter Fused 20 | . . . . . . 3 4 3 . . . . . . 1 1 . . . . . . 2 . . . 2 4 . Heat Flow Errors 13 | . . . . . . 3 1 2 . . . . . . . . . . . . . . 1 . . . . 6 . Energy Discharges 16 | . . . . . . 6 3 . . 1 . . . . . . . . . . . . . . . . . 4 2 Parts Rejected 1 | . . . . . . . . . . . . . . . . . . . . . . . . . . . . . 1 Data Loss (minor) 6 | . . . . . . 1 2 . . . . . . . . . . . . . . . . . . . . 3 . Data Loss (major) 10 | . . . . . . 3 2 . . . . . . . . . . . . . . . 2 . . . . 2 1 Misfires 2 | . . . . . . 1 . . . . . . . . . . . . . . . . . . . . . 1 . Alerts 2 | . . . . . . 1 . . . . . . . . . . . . . . . . . . . . . 1 . Weapon Failures 1 | . . . . . . 1 . . . . . . . . . . . . . . . . . . . . . . . Overload Shots . | . . . . . . . . . . . . . . . . . . . . . . . . . . . . . . Overflow Damage 4038 | . 5 . . . . 88 463 212 97 113 133 671 270 . 149 . 94 . . 544 . . 75 100 200 70 31 513 210 Projectiles 637 | . . . . . . . . 21 . . . . . . . . . . . . . . . . . . . 406 210 Explosions 200 | . 5 . . . . 88 . . . . . . . . . . . . . . . . . . . . . 107 . Melee 3201 | . . . . . . . 463 191 97 113 133 671 270 . 149 . 94 . . 544 . . 75 100 200 70 31 . . Knockbacks 58 | . . . . 5 . . 3 2 1 1 3 4 2 . . 3 . . . 3 . . . 1 . 1 . 13 16 Impact 22 | . . . . . . . 3 . 1 1 3 4 2 . . 3 . . . 3 . . . 1 . 1 . . . Kinetic 32 | . . . . 4 . . . . . . . . . . . . . . . . . . . . . . . 13 15 Secondary 4 | . . . . 1 . . . 2 . . . . . . . . . . . . . . . . . . . . 1 Self-Inflicted Damage 98 | . . . . . . 42 . . . . . . . . . . . 56 . . . . . . . . . . . Shots 4 | . . . . . . 1 . . . . . . . . . . . 3 . . . . . . . . . . . Rammed 1 | . 1 . . . . . . . . . . . . . . . . . . . . . . . . . . . . Targets Rammed 3 | . 1 . . . . . . . . . . . . . . . . . . . . . . . . . . 2 . Kicked 2 | . . . . . . . . . . . . . . . . . . . . . . . . . . . . 2 . Crushed . | . . . . . . . . . . . . . . . . . . . . . . . . . . . . . . Highest Temperature 394 | . 49 394 321 232 171 272 223 209 . . . . . . . 3 . . . . . . 243 . . 320 250 170 273 Average Temperature 75 | . 11 213 61 86 34 90 85 101 . . . . . . . 3 . . . . . . 123 . . 144 104 101 101 Received Heat Transfer 4034 | . 165 626 729 234 351 126 498 120 . 263 . . 12 . 18 165 39 . 6 22 . . 16 . . . 4 534 106 Thermoelectric Energy+ 1509 | . . . . . . . . . . . . . . . . . . . . . . . . . . . . 1195 314 Effects 5 | . . 1 3 1 . . . . . . . . . . . . . . . . . . . . . . . . . Shutdowns 1 | . . 1 . . . . . . . . . . . . . . . . . . . . . . . . . . . Energy Bleed 1 | . . . . 1 . . . . . . . . . . . . . . . . . . . . . . . . . Interference 2 | . . . 2 . . . . . . . . . . . . . . . . . . . . . . . . . . Short Circuit 1 | . . . 1 . . . . . . . . . . . . . . . . . . . . . . . . . . Siege Activations . | . . . . . . . . . . . . . . . . . . . . . . . . . . . . . . Martial Activations . | . . . . . . . . . . . . . . . . . . . . . . . . . . . . . . Shielding Activations . | . . . . . . . . . . . . . . . . . . . . . . . . . . . . . . Robots Disrupted . | . . . . . . . . . . . . . . . . . . . . . . . . . . . . . . Combat Hostiles . | . . . . . . . . . . . . . . . . . . . . . . . . . . . . . . Robots Corrupted 29 | . . . . . . . 4 3 1 2 2 4 2 . 1 . . . . 5 . . 1 1 1 1 1 . . Combat Hostiles 11 | . . . . . . . 1 3 . 2 . 1 . . 1 . . . . 1 . . 1 . . . 1 . . Parts Fried 53 | . . . . . . . 9 2 . . 6 5 6 . 1 . . . . 9 . . 2 5 1 2 5 . . Impact Corruptions 85 | . . . . . . . 14 7 4 3 5 13 7 . 3 1 4 . . 13 . . 1 2 4 3 1 . . Robots Melted 2 | . . . . . . . . . . . . . . . . . . . . . . . . . . . . 2 . Combat Hostiles 2 | . . . . . . . . . . . . . . . . . . . . . . . . . . . . 2 . Parts Melted 3 | . . . . . . . . . . . . . . . . . . 1 . . . . . . . . . 2 . Heat Transferred 2009 | . . . . . . . . . . . . . . . . . . . . . . . . . . . 122 1376 511 Parts Sabotaged 7 | . . . . 4 . 3 . . . . . . . . . . . . . . . . . . . . . . . Parts Stolen . | . . . . . . . . . . . . . . . . . . . . . . . . . . . . . . Parts Stripped . | . . . . . . . . . . . . . . . . . . . . . . . . . . . . . . Power Chain Reactions . | . . . . . . . . . . . . . . . . . . . . . . . . . . . . . . Alert | -11 -10 -10 -8 -8 -8 -8 -7 -7 -6 -6 -5 -5 -5 -5 -5 -5 -4 -4 -4 -4 -4 -4 -4 -3 -3 -2 -2 -2 -1 ------- Run | Yrd Mat Sub Mat Gar Mat Gar Fac Gar Fac Gar Fac Was Fac Gar Fac Gar Fac Was Fac Ext Cet Arc Hub Res Tes Res Qua Frg Acc Maximum Alert Level 5 | . . . 2 4 3 4 2 4 3 4 3 1 2 3 3 3 2 1 . 2 1 . 2 . 1 1 1 5 4 Low Security (%) 34 | 100 100 . 15 . . . . . . . . 95 17 . . . . 62 100 49 44 100 51 100 77 45 70 44 . Level 1 28 | . . . 47 9 . . 65 60 . . . 4 17 40 . . 34 37 . 49 55 . 43 . 22 54 29 44 . Level 2 19 | . . . 36 11 95 18 34 4 80 23 56 . 65 9 92 27 65 . . 1 . . 4 . . . . . . Level 3 10 | . . . . 44 4 55 . 24 19 34 43 . . 50 7 72 . . . . . . . . . . . 1 21 Level 4 6 | . . . . 34 . 25 . 10 . 42 . . . . . . . . . . . . . . . . . . 78 Level 5 . | . . . . . . . . . . . . . . . . . . . . . . . . . . . . . . High Security 1 | . . . . . . . . . . . . . . . . . . . . . . . . . . . . 8 . Max Security . | . . . . . . . . . . . . . . . . . . . . . . . . . . . . . . Peak Influence 1754 | 5 117 . 470 1421 719 1294 679 1188 839 1422 746 214 573 938 838 1029 534 246 109 450 267 62 435 112 350 276 250 1754 1395 Initial 1100 | . . . . 281 692 462 679 247 623 567 746 214 . 328 492 579 534 116 109 1 137 47 . . 47 192 97 24 1100 Average 396 | 1 16 . 327 890 605 926 384 525 629 995 682 56 381 648 554 892 427 185 59 179 200 26 180 24 97 208 132 303 1232 Influence Increases 17243 | 15 356 20 1095 1140 849 882 636 961 457 955 47 . 1278 610 476 570 170 180 120 905 343 63 988 286 721 172 436 1825 687 Destroy 0b10 Robot/C 7440 | . 220 20 640 640 560 600 320 480 220 540 . . 380 240 200 220 60 . 20 340 140 20 320 80 180 20 80 640 260 Destroy 0b10 Robot/NC 595 | 15 30 . 110 . 55 . 60 . 15 5 10 . 55 . . 5 25 . 5 40 10 . 15 20 35 5 5 45 30 Destroy Leader 1064 | . 48 . 192 20 140 50 116 20 32 30 . . 74 30 30 20 14 . 12 32 . . 62 22 26 10 10 22 52 Allied During Kill 3797 | . . . . . . . 77 288 102 272 6 . 460 270 230 198 50 . 14 370 150 20 378 103 205 30 79 495 . Successful Hack 452 | . 20 . 22 . . . 46 . 12 12 14 . . . . 14 . . 46 43 9 . . 7 47 30 103 . 27 Disable Machine 1200 | . 15 . 45 . 60 . 15 30 60 . 15 . 105 . . 15 15 . 15 30 . 15 105 30 180 30 60 330 30 Anti-Garrison Action 650 | . . . . 350 . 150 . 100 . 50 . . . . . . . . . . . . . . . . . . . Destroy Structure 1715 | . 8 . 11 70 4 67 2 43 16 31 2 . 204 70 16 68 6 180 8 50 34 8 108 24 48 47 99 248 243 Partial Spotted 45 | . . . . . . 15 . . . . . . . . . . . . . . . . . . . . . . 30 Lose Combat Pursuer 285 | . 15 . 75 60 30 . . . . 15 . . . . . 30 . . . . . . . . . . . 45 15 Influence Decreases 16765 | 15 356 20 662 152 1559 299 1577 126 835 343 856 613 809 141 586 379 857 356 272 662 472 179 990 201 464 340 565 855 1224 Entered New Map 6478 | . . . . 152 729 249 615 106 565 243 676 399 . 141 446 249 485 216 47 3 110 71 2 . 38 150 77 21 688 Time Decay 6977 | 15 356 20 602 . 530 . 592 . 190 . 180 214 354 . 140 . 262 140 190 439 262 88 368 201 406 190 318 594 326 Lost Part 440 | . . . 60 . . 50 10 . . 20 . . . . . 10 10 . . 10 . . . . . . . 60 210 Lost Ally 1595 | . . . . . . . 360 20 80 80 . . 80 . . 120 100 . 35 60 100 20 320 . 20 . 20 180 . Purge Threat 1275 | . . . . . 300 . . . . . . . 375 . . . . . . 150 . . 300 . . . 150 . . Squads Dispatched 98 | . 1 . 6 . 4 . 11 . 5 . 1 . 4 . 1 . 4 . 2 2 . . 7 7 8 1 4 19 11 Investigation 10 | . . . . . . . 2 . 1 . . . . . . . 1 . 1 . . . . 3 . . . . 2 Extermination 27 | . . . . . . . 3 . . . . . 2 . . . 2 . 1 . . . 2 1 4 1 2 6 3 Reinforcement 35 | . 1 . 3 . 1 . 2 . 1 . . . 2 . 1 . 1 . . 2 . . 5 3 4 . 2 5 2 Assault 20 | . . . . . 3 . 1 . 3 . 1 . . . . . . . . . . . . . . . . 8 4 Garrison 6 | . . . 3 . . . 3 . . . . . . . . . . . . . . . . . . . . . . Intercept . | . . . . . . . . . . . . . . . . . . . . . . . . . . . . . . Searches Triggered . | . . . . . . . . . . . . . . . . . . . . . . . . . . . . . . Construction Impeded 4 | . . . 1 . . . . . . . . . 1 . . . . . . . . . . . . . . . 2 Haulers Reinforced 2 | . . . . . . . . . 1 . . . . . . . . . . . . . 1 . . . . . . Active Scanning Responses . | . . . . . . . . . . . . . . . . . . . . . . . . . . . . . . Cargo Convoy Interrupts 1 | . . . . . . . 1 . . . . . . . . . . . . . . . . . . . . . . Alert ID Control Effect 184 | . . . . . . . . . . . . . 1 1 . 13 16 . 3 8 1 . 24 15 23 3 18 58 . Stealth | -11 -10 -10 -8 -8 -8 -8 -7 -7 -6 -6 -5 -5 -5 -5 -5 -5 -4 -4 -4 -4 -4 -4 -4 -3 -3 -2 -2 -2 -1 --------- Run | Yrd Mat Sub Mat Gar Mat Gar Fac Gar Fac Gar Fac Was Fac Gar Fac Gar Fac Was Fac Ext Cet Arc Hub Res Tes Res Qua Frg Acc Distress Signals 25 | . 1 . 3 . . . 1 . . . . . 1 . 1 . . . 1 2 2 . . 4 2 . 1 . 6 Communications Jammed 571 | . . . . . 3 . 160 . 1 . . . . . 1 32 4 . . 298 . . 66 2 4 . . . . Distress Signals 566 | . . . . . 3 . 158 . 1 . . . . . . 32 4 . . 298 . . 65 2 3 . . . . Times Spotted 653 | . 17 9 45 33 46 26 42 25 7 26 2 . 13 8 14 16 19 6 6 27 5 . 23 12 14 1 18 111 82 Peak Tracking Total 26 | . 4 2 11 10 5 7 7 3 3 3 2 . 5 5 4 9 8 2 3 6 5 . 6 3 3 2 5 26 19 Tactical Retreats 15 | . 1 . 5 3 1 . . . . 1 . . . . . 2 . . . . . . . . . . . 1 1 Traps | -11 -10 -10 -8 -8 -8 -8 -7 -7 -6 -6 -5 -5 -5 -5 -5 -5 -4 -4 -4 -4 -4 -4 -4 -3 -3 -2 -2 -2 -1 ------- Run | Yrd Mat Sub Mat Gar Mat Gar Fac Gar Fac Gar Fac Was Fac Gar Fac Gar Fac Was Fac Ext Cet Arc Hub Res Tes Res Qua Frg Acc Traps Triggered 42 | . . . . 5 1 11 1 7 . 4 1 . . 1 1 . 1 . . 4 . . . . . . 2 2 1 Indirectly . | . . . . . . . . . . . . . . . . . . . . . . . . . . . . . . Trap Hack Attempts . | . . . . . . . . . . . . . . . . . . . . . . . . . . . . . . Triggered . | . . . . . . . . . . . . . . . . . . . . . . . . . . . . . . Disarmed . | . . . . . . . . . . . . . . . . . . . . . . . . . . . . . . Reprogrammed . | . . . . . . . . . . . . . . . . . . . . . . . . . . . . . . Reused . | . . . . . . . . . . . . . . . . . . . . . . . . . . . . . . Traps Extracted . | . . . . . . . . . . . . . . . . . . . . . . . . . . . . . . Installed . | . . . . . . . . . . . . . . . . . . . . . . . . . . . . . . Triggered . | . . . . . . . . . . . . . . . . . . . . . . . . . . . . . . Machines | -11 -10 -10 -8 -8 -8 -8 -7 -7 -6 -6 -5 -5 -5 -5 -5 -5 -4 -4 -4 -4 -4 -4 -4 -3 -3 -2 -2 -2 -1 ---------- Run | Yrd Mat Sub Mat Gar Mat Gar Fac Gar Fac Gar Fac Was Fac Gar Fac Gar Fac Was Fac Ext Cet Arc Hub Res Tes Res Qua Frg Acc Machines Disabled 97 | . 1 1 3 4 4 1 1 2 4 1 1 . 7 . . 1 1 . 1 4 . 1 7 2 14 2 4 28 2 Max in Single Turn 1 | . 1 1 1 1 1 1 . 1 1 1 1 . . . . . . . . 1 . 1 1 1 1 1 1 1 1 Garrison Access 5 | . . . . . . . . . . . . . . . . . 1 . 1 . . . 1 1 . . . 1 . Garrison Relay 5 | . . . . 3 . 1 . . . 1 . . . . . . . . . . . . . . . . . . . Network Hub 3 | . . . . . . . . . . . . . . . . . . . . . . . 3 . . . . . . Machines Repaired 1 | . . . . . . . . . . . . . . . . . . . 1 . . . . . . . . . . Machines Dismantled 4 | . . . . . . . . . . . . . . . . . . . . 1 . . 3 . . . . . . Machines Sabotaged . | . . . . . . . . . . . . . . . . . . . . . . . . . . . . . . Overloaded Fab Kills . | . . . . . . . . . . . . . . . . . . . . . . . . . . . . . . Hacking | -11 -10 -10 -8 -8 -8 -8 -7 -7 -6 -6 -5 -5 -5 -5 -5 -5 -4 -4 -4 -4 -4 -4 -4 -3 -3 -2 -2 -2 -1 --------- Run | Yrd Mat Sub Mat Gar Mat Gar Fac Gar Fac Gar Fac Was Fac Gar Fac Gar Fac Was Fac Ext Cet Arc Hub Res Tes Res Qua Frg Acc Machines Accessed 115 | . 6 2 14 2 6 . 9 1 3 2 1 . 5 . 5 1 5 . 7 9 2 . 5 5 8 4 6 3 4 Terminals 88 | . 4 . 8 2 4 . 7 1 2 2 1 . 4 . 4 1 2 . 6 9 2 . 4 4 6 3 6 2 4 Fabricators 1 | . . . . . . . . . . . . . . . . . . . . . . . . . 1 . . . . Repair Stations 4 | . 1 . 2 . 1 . . . . . . . . . . . . . . . . . . . . . . . . Recycling Units 3 | . 1 . 1 . . . . . . . . . . . . . 1 . . . . . . . . . . . . Scanalyzers 6 | . . . 2 . . . 1 . . . . . . . . . 1 . . . . . . . 1 1 . . . Garrison Access 11 | . . . 1 . 1 . 1 . 1 . . . 1 . 1 . 1 . 1 . . . 1 1 . . . 1 . Total Hacks 263 | . 13 6 37 4 9 . 24 1 7 3 2 . 5 . 8 1 9 . 11 17 5 . 8 9 26 19 22 3 14 Successful 111 | . 10 6 20 1 4 . 9 . 3 2 1 . 1 . 2 1 1 . 5 7 3 . 3 2 7 9 10 3 1 Failed 150 | . 3 . 16 3 5 . 15 1 4 1 1 . 4 . 6 . 8 . 6 10 2 . 5 7 19 9 12 . 13 Catastrophic 51 | . . . 3 . 2 . 4 1 . . . . 2 . 2 . 4 . 2 2 1 . 3 3 8 4 3 . 7 Database Lockouts 2 | . . . 1 . . . . . . . . . . . . . . . . . . . . . . 1 . . . Manual 71 | . 3 . 10 1 4 . 5 . 6 . . . 4 . 2 . 1 . 4 4 1 . . 3 5 6 12 . . Terminals 202 | . 6 . 16 4 6 . 15 1 6 3 2 . 4 . 7 1 6 . 10 17 5 . 7 8 23 17 22 2 14 Fabricators 2 | . . . . . . . . . . . . . . . . . . . . . . . . . 2 . . . . Repair Stations 16 | . 6 . 8 . 2 . . . . . . . . . . . . . . . . . . . . . . . . Recycling Units 5 | . 1 . 3 . . . . . . . . . . . . . 1 . . . . . . . . . . . . Scanalyzers 20 | . . . 8 . . . 8 . . . . . . . . . 1 . . . . . . . 1 2 . . . Garrison Access 12 | . . . 2 . 1 . 1 . 1 . . . 1 . 1 . 1 . 1 . . . 1 1 . . . 1 . Terminal Hacks 62 | . 3 6 4 1 2 . 2 . 1 2 1 . . . 1 1 . . 4 7 3 . 2 1 4 7 7 2 1 Record 8 | . . 5 . . . . . . . . . . . . . . . . . . 2 . . . . . . 1 . Part Schematic 2 | . . . . . . . . . . . . . . . . . . . . . . . . . 1 1 . . . Robot Analysis 3 | . . . . . . . . . . . . . . . . . . . . . . . . . . 1 2 . . Prototype ID Bank 5 | . 1 . 1 . . . . . . . . . . . . . . . . 1 . . . . . 1 1 . . Open Door 7 | . . . . . . . . . . 1 . . . . . . . . 1 3 1 . . . 1 . . . . Level Access Points 1 | . . . . . . . . . . . . . . . . . . . . . . . . . . . . . 1 Branch Access Points 4 | . . . . . . . . . 1 . . . . . . . . . 1 . . . . 1 . 1 . . . Emergency Access Points 4 | . . . . 1 . . . . . 1 . . . . . 1 . . . . . . . . 1 . . . . Terminal Index 3 | . . . . . . . . . . . . . . . . . . . 1 . . . . . . 1 1 . . Garrison Index 2 | . . . . . . . . . . . . . . . 1 . . . . . . . . . . 1 . . . Unreport Threat 6 | . . . . . 2 . . . . . . . . . . . . . . 1 . . 2 . . . 1 . . Locate Traps 11 | . 2 . 2 . . . 1 . . . 1 . . . . . . . . 2 . . . . . 1 2 . . Recall Extermination 1 | . . . . . . . . . . . . . . . . . . . . . . . . . 1 . . . . Zone Layout 3 | . . . 1 . . . 1 . . . . . . . . . . . 1 . . . . . . . . . . Proto ID Catalog 2 | . . 1 . . . . . . . . . . . . . . . . . . . . . . . . . 1 . Fabricator Hacks 1 | . . . . . . . . . . . . . . . . . . . . . . . . . 1 . . . . Network Status 1 | . . . . . . . . . . . . . . . . . . . . . . . . . 1 . . . . Repair Station Hacks 13 | . 6 . 6 . 1 . . . . . . . . . . . . . . . . . . . . . . . . Scan Component 8 | . 3 . 4 . 1 . . . . . . . . . . . . . . . . . . . . . . . . Repair 5 | . 3 . 2 . . . . . . . . . . . . . . . . . . . . . . . . . . Recycling Unit Hacks 2 | . 1 . 1 . . . . . . . . . . . . . . . . . . . . . . . . . . Retrieve Components 2 | . 1 . 1 . . . . . . . . . . . . . . . . . . . . . . . . . . Scanalyzer 12 | . . . 6 . . . 5 . . . . . . . . . . . . . . . . . . 1 . . . Insert Component 2 | . . . 2 . . . . . . . . . . . . . . . . . . . . . . . . . . Analyze 1 | . . . 1 . . . . . . . . . . . . . . . . . . . . . . . . . . Retrieve Study 9 | . . . 3 . . . 5 . . . . . . . . . . . . . . . . . . 1 . . . Garrison Access Hacks 11 | . . . 1 . 1 . 1 . 1 . . . 1 . 1 . 1 . 1 . . . 1 1 . . . 1 . Unlock Access 6 | . . . 1 . 1 . 1 . 1 . . . 1 . 1 . . . . . . . . . . . . . . Seal Access 5 | . . . . . . . . . . . . . . . . . 1 . 1 . . . 1 1 . . . 1 . Unauthorized Hacks 10 | . . . 2 . . . 1 . 1 . . . . . . . . . . . . . . . 2 1 3 . . Terminals 9 | . . . 1 . . . 1 . 1 . . . . . . . . . . . . . . . 2 1 3 . . Assimilate 1 | . . . . . . . . . . . . . . . . . . . . . . . . . . . 1 . . Botnet 5 | . . . 1 . . . 1 . 1 . . . . . . . . . . . . . . . 2 . . . . Disrupt 1 | . . . . . . . . . . . . . . . . . . . . . . . . . . . 1 . . Operators 2 | . . . . . . . . . . . . . . . . . . . . . . . . . . 1 1 . . Fabricators . | . . . . . . . . . . . . . . . . . . . . . . . . . . . . . . Repair Stations . | . . . . . . . . . . . . . . . . . . . . . . . . . . . . . . Recycling Units 1 | . . . 1 . . . . . . . . . . . . . . . . . . . . . . . . . . Mask 1 | . . . 1 . . . . . . . . . . . . . . . . . . . . . . . . . . Scanalyzers . | . . . . . . . . . . . . . . . . . . . . . . . . . . . . . . Garrison Access . | . . . . . . . . . . . . . . . . . . . . . . . . . . . . . . Data Cores Recovered 7 | . 1 . . . . . 1 . . . . . . . . . . . . . . . 1 . 1 1 2 . . Used 4 | . . . . . . . . . . . . . . . . . . . . . . . 1 . 1 1 1 . . Hacking Detections 73 | . 3 . 13 2 5 . 8 1 2 . 1 . 2 . 2 1 4 . 2 7 2 . 3 2 5 2 3 . 3 Full Trace Events 7 | . . . . . . . 2 . 1 . . . . . . . 1 . 1 . . . . . . . . . 2 Feedback Events . | . . . . . . . . . . . . . . . . . . . . . . . . . . . . . . Feedback Blocked . | . . . . . . . . . . . . . . . . . . . . . . . . . . . . . . Robot Schematics Acquired 6 | . . . . . . . . . . . . . . . . . . . . . . . . . 3 . 1 2 . Robots Built . | . . . . . . . . . . . . . . . . . . . . . . . . . . . . . . Authchips . | . . . . . . . . . . . . . . . . . . . . . . . . . . . . . . Time . | . . . . . . . . . . . . . . . . . . . . . . . . . . . . . . Total Robot Build Rating . | . . . . . . . . . . . . . . . . . . . . . . . . . . . . . . Part Schematics Acquired 28 | . . . 1 . . . . . . . . . . . . . . . . . . . . . 10 1 3 13 . Parts Built . | . . . . . . . . . . . . . . . . . . . . . . . . . . . . . . Authchips . | . . . . . . . . . . . . . . . . . . . . . . . . . . . . . . Time . | . . . . . . . . . . . . . . . . . . . . . . . . . . . . . . Total Part Build Rating . | . . . . . . . . . . . . . . . . . . . . . . . . . . . . . . Part Studies Acquired 9 | . . . 3 . . . 5 . . . . . . . . . . . . . . . . . . 1 . . . Parts Repaired 5 | . 3 . 2 . . . . . . . . . . . . . . . . . . . . . . . . . . Time 154 | . 78 . 76 . . . . . . . . . . . . . . . . . . . . . . . . . . Parts Recycled . | . . . . . . . . . . . . . . . . . . . . . . . . . . . . . . Recycled Matter . | . . . . . . . . . . . . . . . . . . . . . . . . . . . . . . Retrieved Matter . | . . . . . . . . . . . . . . . . . . . . . . . . . . . . . . Retrieved Components 9 | . 7 . 2 . . . . . . . . . . . . . . . . . . . . . . . . . . Parts Scanalyzed 1 | . . . 1 . . . . . . . . . . . . . . . . . . . . . . . . . . Part Schematics Acquired 1 | . . . 1 . . . . . . . . . . . . . . . . . . . . . . . . . . Parts Damaged . | . . . . . . . . . . . . . . . . . . . . . . . . . . . . . . Bothacking | -11 -10 -10 -8 -8 -8 -8 -7 -7 -6 -6 -5 -5 -5 -5 -5 -5 -4 -4 -4 -4 -4 -4 -4 -3 -3 -2 -2 -2 -1 ------------ Run | Yrd Mat Sub Mat Gar Mat Gar Fac Gar Fac Gar Fac Was Fac Gar Fac Gar Fac Was Fac Ext Cet Arc Hub Res Tes Res Qua Frg Acc Used RIF Installer 9 | . . . . 2 . 2 . 1 . 2 . . . 1 . 1 . . . . . . . . . . . . . Hotswap 1 | . . . . . . 1 . . . . . . . . . . . . . . . . . . . . . . . Code Merge 1 | . . . . . . . . . . 1 . . . . . . . . . . . . . . . . . . . Command Fork 1 | . . . . . . . . . . 1 . . . . . . . . . . . . . . . . . . . Signal Jammer 1 | . . . . . . . . . . . . . . . . 1 . . . . . . . . . . . . . Alert ID Control 1 | . . . . 1 . . . . . . . . . . . . . . . . . . . . . . . . . Program Shield 1 | . . . . . . 1 . . . . . . . . . . . . . . . . . . . . . . . Autooverride 1 | . . . . . . . . 1 . . . . . . . . . . . . . . . . . . . . . Autoassimilate 1 | . . . . . . . . . . . . . . 1 . . . . . . . . . . . . . . . Robots Hacked 23 | . . . . . . . . . . . . . 1 . . 1 1 . . 5 . 2 1 . 1 . 1 10 . Non-combat 1 | . . . . . . . . . . . . . 1 . . . . . . . . . . . . . . . . Combat 22 | . . . . . . . . . . . . . . . . 1 1 . . 5 . 2 1 . 1 . 1 10 . Autooverrided 10 | . . . . . . . . . . . . . . . . . 1 . . 3 . . . . 1 . . 5 . Autoassimilated 9 | . . . . . . . . . . . . . . . . 1 . . . 2 . . 1 . . . . 5 . Robot Hacks Applied 6 | . . . . . . . . . . . . . 3 . . . . . . . . 2 . . . . 1 . . parse_system 3 | . . . . . . . . . . . . . . . . . . . . . . 2 . . . . 1 . . purge_threat 3 | . . . . . . . . . . . . . 3 . . . . . . . . . . . . . . . . Relay Couplers Released 25 | . . . . 13 . 4 . . . 4 . . 4 . . . . . . . . . . . . . . . . Machine Destruction 21 | . . . . 13 . 4 . . . 4 . . . . . . . . . . . . . . . . . . . Programmers 4 | . . . . . . . . . . . . . 4 . . . . . . . . . . . . . . . . Attached 5 | . . . . . . . . . . 1 2 . . . . . . . . . . . 1 1 . . . . . Merged Code Value 26 | . . . . . . . . . . 26 . . . . . . . . . . . . . . . . . . . Fabnet Peak Effective % . | . . . . . . . . . . . . . . . . . . . . . . . . . . . . . . Robots Rewired 18 | . . . . . . . . 2 . . . . . . . . . . . 16 . . . . . . . . . Allies Hacked 3 | . . . . . . . 1 . . 1 . . 1 . . . . . . . . . . . . . . . . Hacks Repelled . | . . . . . . . . . . . . . . . . . . . . . . . . . . . . . . Allies | -11 -10 -10 -8 -8 -8 -8 -7 -7 -6 -6 -5 -5 -5 -5 -5 -5 -4 -4 -4 -4 -4 -4 -4 -3 -3 -2 -2 -2 -1 -------- Run | Yrd Mat Sub Mat Gar Mat Gar Fac Gar Fac Gar Fac Was Fac Gar Fac Gar Fac Was Fac Ext Cet Arc Hub Res Tes Res Qua Frg Acc Total Allies 73 | . . . . . . . . 4 . 1 . 20 . . . 1 1 . . 25 5 . 1 . 1 . . 14 . Largest Group 21 | . . . . . . . . 4 4 2 1 21 18 10 10 7 2 . . 17 17 17 14 . 1 . . 4 . Highest-Rated Group 1126 | . . . . . . . . 219 214 93 51 846 698 446 446 310 55 . . 883 1126 1126 893 . 47 . . 375 . Highest-Rated Ally 159 | . . . . . . . . 95 90 62 51 51 50 50 50 50 47 . . 159 153 153 96 . 47 . . 120 . Total Orders . | . . . . . . . . . . . . . . . . . . . . . . . . . . . . . . Ally Attacks 2737 | . . . . . . . 112 63 42 116 3 . 119 37 9 121 145 17 36 190 84 9 334 96 199 53 174 778 . Total Damage 74080 | . . . . . . . 2649 2577 1191 2913 69 . 3958 1635 548 2750 3566 442 1082 5735 2369 303 8682 2885 5772 1324 3850 19780 . Kills 406 | . . . . . . . 17 21 13 26 . . 31 13 8 25 20 1 5 27 12 1 44 20 33 4 20 65 . Allies Corrupted 17 | . . . . . . . 1 . . . . 1 3 . . 2 . . . . . . 6 . . . 1 3 . Allies Melted 2 | . . . . . . . . . . . . . . . . . . . . 1 . . 1 . . . . . . Borg Created 57 | . . . . . . . 22 2 2 5 . 2 . . 1 3 5 . . 5 . . 6 1 . . . 3 . Largest Collective 8 | . . . . . . . 5 3 5 6 . 8 . . 6 5 6 . . 6 . . 4 4 . . . 6 . Intel | -11 -10 -10 -8 -8 -8 -8 -7 -7 -6 -6 -5 -5 -5 -5 -5 -5 -4 -4 -4 -4 -4 -4 -4 -3 -3 -2 -2 -2 -1 ------- Run | Yrd Mat Sub Mat Gar Mat Gar Fac Gar Fac Gar Fac Was Fac Gar Fac Gar Fac Was Fac Ext Cet Arc Hub Res Tes Res Qua Frg Acc Active Infowar (turns) 20678 | 11 99 4171 291 . 101 1198 1502 1337 383 788 320 21 853 218 211 332 358 18 455 2004 572 197 929 787 1275 390 560 776 521 Sensors 4318 | . . . . . . . . . . . . . . . . . 169 13 . . . . . 683 1275 390 526 773 489 Terrain 5217 | . . . . . . . . . . . . 21 853 7 . . 292 5 455 24 . . 395 787 1061 313 376 108 520 Structural 4462 | . . 4171 291 . . . . . . . . . . . . . . . . . . . . . . . . . . Seismic 110 | 11 99 . . . . . . . . . . . . . . . . . . . . . . . . . . . . Machine Analysis 409 | . . . . . . . 409 . . . . . . . . . . . . . . . . . . . . . . Cloaking 1 | . . . . . . . . . . . . . . . . . . . . . . . . . . . . 1 . Jamming 9906 | . . . . . 101 1198 1093 1337 383 788 320 . . 211 211 332 295 . . 1980 572 197 784 104 . . . . . Robot Analysis Total 3 | . . . . . . . . . . . . . . . . . . . . . . . . . . 1 2 . . Derelict Logs Recovered 2 | . . 2 . . . . . . . . . . . . . . . . . . . . . . . . . . . Drone Launches . | . . . . . . . . . . . . . . . . . . . . . . . . . . . . . . Drone Recoveries . | . . . . . . . . . . . . . . . . . . . . . . . . . . . . . . Exploration | -11 -10 -10 -8 -8 -8 -8 -7 -7 -6 -6 -5 -5 -5 -5 -5 -5 -4 -4 -4 -4 -4 -4 -4 -3 -3 -2 -2 -2 -1 ------------- Run | Yrd Mat Sub Mat Gar Mat Gar Fac Gar Fac Gar Fac Was Fac Gar Fac Gar Fac Was Fac Ext Cet Arc Hub Res Tes Res Qua Frg Acc Turns Passed 39429 | 123 2086 8822 3626 1838 1497 1370 1867 1337 383 802 368 845 853 218 289 413 562 288 455 2004 572 197 930 787 1288 390 711 3773 735 Spaces Moved 17656 | 65 677 2882 1593 807 609 562 910 517 180 348 217 634 618 114 235 250 338 92 329 744 305 61 524 544 725 241 491 1548 496 Core 154 | 27 . . . . . . . . . . . . . . . . . . . . . . . . . . . . 127 Treads 7168 | 38 677 2882 1593 807 609 562 . . . . . . . . . . . . . . . . . . . . . . . Legs 4871 | . . . . . . . 910 517 180 348 217 634 618 114 235 250 71 . . . . . . . . . . 621 156 Wheels 5250 | . . . . . . . . . . . . . . . . . 267 92 329 744 305 61 524 544 725 241 491 927 . Hover . | . . . . . . . . . . . . . . . . . . . . . . . . . . . . . . Flight 213 | . . . . . . . . . . . . . . . . . . . . . . . . . . . . . 213 Fastest Speed 37 | 50 160 160 185 185 206 206 178 182 182 182 106 106 106 106 106 106 113 129 129 129 129 129 129 129 129 124 124 124 37 Average Speed 182 | 120 256 296 192 195 206 206 180 182 182 182 144 106 106 106 106 114 135 129 129 129 129 129 129 129 129 126 124 174 107 Slowest Speed 320 | 160 320 320 240 225 206 277 190 182 182 182 182 182 106 106 106 185 185 129 129 129 190 129 129 129 129 129 124 250 250 Overloaded Moves . | . . . . . . . . . . . . . . . . . . . . . . . . . . . . . . Propulsion Burnouts . | . . . . . . . . . . . . . . . . . . . . . . . . . . . . . . Robots Hopped 7 | . . . . . . . . . . . . . . . . . . . . . . . . . . . . . 7 Potential Cave-ins 17 | . . . . . . . . . . . . . . . . . . . . . . 2 . . . . . 15 . Cave-ins Triggered . | . . . . . . . . . . . . . . . . . . . . . . . . . . . . . . Teleports 17 | . . . . . . . . . . . . . . . . . . . . . . . . . . . . 1 16 Exploration Rate (%) 49 | 4 92 96 82 72 62 73 27 74 11 54 8 95 26 28 10 39 14 83 12 86 81 76 58 19 69 15 66 33 25 Regions Visited 29 Branch Regions 8 Pre-discovered Areas . | . . . . . . . . . . . . . . . . . . . . . . . . . . . . . . Known Exits Taken 11 | . . . 1 . 1 . 1 . 1 . . . 1 . 1 . . . 1 . . . . 1 1 1 1 . . Unknown Exits Taken 8 | 1 1 1 . . . . . . . . . . . . . . . . . 1 1 1 1 . . . . 1 . Scrap Searched 11 | . . 11 . . . . . . . . . . . . . . . . . . . . . . . . . . . Spaces Dug 76 | . . . . . . 6 2 1 3 1 1 . 3 . 2 . . . 2 . . 5 4 3 6 6 1 24 6 Terrain Destroyed 428 | . 8 . 6 1 1 25 2 1 3 1 1 . 3 . 2 . . 208 2 . . 5 4 3 7 6 1 47 91 Melee 31 | . . . . . . . . 1 3 1 1 . 3 . 2 . . . 2 . . 5 4 3 5 . 1 . . Projectile 153 | . . . 6 1 1 7 2 . . . . . . . . . . . . . . . . . . 6 . 39 91 AOE 241 | . 8 . . . . 18 . . . . . . . . . . . 208 . . . . . . . . . 7 . Terrain Rammed . | . . . . . . . . . . . . . . . . . . . . . . . . . . . . . . Walls Destroyed . | . . . . . . . . . . . . . . . . . . . . . . . . . . . . . . Machines Disabled . | . . . . . . . . . . . . . . . . . . . . . . . . . . . . . . Actions | -11 -10 -10 -8 -8 -8 -8 -7 -7 -6 -6 -5 -5 -5 -5 -5 -5 -4 -4 -4 -4 -4 -4 -4 -3 -3 -2 -2 -2 -1 --------- Run | Yrd Mat Sub Mat Gar Mat Gar Fac Gar Fac Gar Fac Was Fac Gar Fac Gar Fac Was Fac Ext Cet Arc Hub Res Tes Res Qua Frg Acc Total 23277 | 90 928 3071 1962 961 752 666 1064 726 221 481 264 782 797 210 260 346 414 237 350 1744 482 150 729 610 1033 313 566 2461 607 Wait 3355 | 3 163 47 170 52 61 . 19 34 29 69 12 110 146 96 9 70 30 131 8 796 150 71 121 32 197 50 33 617 29 Move 17618 | 64 676 2881 1592 805 608 561 910 516 180 346 217 633 617 113 234 249 338 91 328 743 304 60 523 543 724 240 490 1548 484 Hop 5 | . . . . . . . . . . . . . . . . . . . . . . . . . . . . . 5 Pick Up 320 | 7 20 39 36 8 5 8 29 2 1 8 11 6 5 . 2 3 7 . 1 5 5 . 7 6 24 2 5 58 10 Fast Attach 86 | 7 4 3 6 4 2 4 2 . . . 1 . . . . 1 2 . 1 . 6 . 8 2 6 1 . 15 11 Attach 64 | . . 3 7 2 . 4 9 . 2 2 2 . . . . . 4 . . 1 1 . 1 2 1 2 . 10 11 Detach 10 | . . 1 . . . . 5 . . . . . . . . . . . . . . . . . . 1 . . 3 Swap 280 | . 8 13 18 11 8 5 18 8 . 13 6 13 11 1 4 2 13 4 4 13 5 1 25 7 13 7 14 34 1 Drop 313 | . 4 23 38 9 10 4 28 2 1 5 10 6 5 . 2 3 6 . 2 6 11 . 17 7 32 2 5 64 11 Fire 607 | 9 52 58 95 70 58 60 8 . . . . . 3 . . . . 11 . . . 2 . . 16 6 13 104 42 Melee 268 | . . . . . . . 14 114 6 13 5 8 6 . 5 14 8 . 2 13 . 16 7 9 20 2 6 . . Ram . | . . . . . . . . . . . . . . . . . . . . . . . . . . . . . . Kick 1 | . . . . . . . . . . . . . . . . . . . . . . . . . . . . 1 . Crush 1 | . 1 . . . . . . . . . . . . . . . . . . . . . . . . . . . . Escape Stasis 107 | . . . . . . 20 . 30 . 20 . . . . . . . . . 32 . . . . . . . 5 . Rewire 144 | . . . . . . . . 18 . . . 4 . . . . 1 . . 121 . . . . . . . . . Trap . | . . . . . . . . . . . . . . . . . . . . . . . . . . . . . . Miscellaneous 98 | . . 3 . . . . 22 2 2 5 . 2 4 . 4 4 5 . 4 14 . . 20 2 . . . 5 . Route ------- -11/Scrapyard -10/Materials (discovered 6 exits: [*Mat x3] / [*Min x2] / *Sub) -10/Subcaves (discovered 4 exits: *Mat x2 / [*Rec] / [*Scr]) -8/Materials (discovered 3 exits: *Fac x2 / Gar) -8/Garrison (discovered 3 exits: *Mat x3) -8/Materials (discovered 3 exits: *Fac x2 / Gar) -8/Garrison (discovered 3 exits: *Fac x3) -7/Factory (discovered 2 exits: [*Low] / Gar) -7/Garrison (discovered 3 exits: *Fac x3) -6/Factory (discovered 3 exits: Low x2 / Gar) -6/Garrison -5/Factory -5/Waste -5/Factory (discovered 3 exits: *Fac / [*Upp] / Gar) -5/Garrison -5/Factory -5/Garrison -4/Factory -4/Waste -4/Factory (discovered 5 exits: Upp x2 / *Ext x2 / Arm) -4/Extension (discovered 2 exits: *Res / *Cet) -4/Cetus (discovered 2 exits: *Res / [*Arc]) -4/Archives (discovered 2 exits: *Hub x2) -4/Hub_04(d) (discovered 3 exits: *Res x3) -3/Research (discovered 5 exits: *Res x3 / *Tes x2) -3/Testing -2/Research (discovered 2 exits: *Qua x2) -2/Quarantine (discovered 2 exits: *Sec / *Frg) -2/Protoforge -1/Access (discovered 1 exit: Sur) History --------- Turn | Location | Event 6 | -11/Scrapyard | Discovered new exit (range 15) 124 | -11/Scrapyard | Entered Materials 125 | -10/Materials | Met a group of wandering Federalists 318 | -10/Materials | Build established: Mutant 380 | -10/Materials | Discovered new exit (range 14) 589 | -10/Materials | Discovered new exit (range 9) 826 | -10/Materials | Discovered new exit (range 15) 1174 | -10/Materials | Discovered new exit (range 14) 1443 | -10/Materials | Discovered new exit (range 15) 1741 | -10/Materials | Repaired Lgt. Armor Plating 1768 | -10/Materials | Repaired Lgt. Treads 1796 | -10/Materials | Repaired Lgt. Treads 2201 | -10/Materials | Discovered new exit (range 4) 2210 | -10/Materials | Entered Subcaves 2211 | -10/Subcaves | Continued accompanying wandering Federalists (6) 2211 | -10/Subcaves | Approached by a straggling Scientist 2454 | -10/Subcaves | Wandering Federalist uncovered a shortcut to Scraptown 2908 | -10/Subcaves | Discovered new exit (range 15) 3038 | -10/Subcaves | A swath of the cavern ceiling suddenly collapsed 3050 | -10/Subcaves | Learned 2 Materials zone layouts 4309 | -10/Subcaves | Shifting Twisted Machinery released Sub. Optics 4785 | -10/Subcaves | Visited 4L-MR0's lab 4815 | -10/Subcaves | Found Prototype Special Melee Weapon 4831 | -10/Subcaves | Found Arachnoskeleton 5536 | -10/Subcaves | Learned Materials garrison access intel 5539 | -10/Subcaves | Discovered new exit (range 6) 5691 | -10/Subcaves | Shifting Twisted Machinery released Piercing Trap 6139 | -10/Subcaves | Shifting Twisted Machinery released Barrage Gun 6349 | -10/Subcaves | Shifting Twisted Machinery released Riot Gun 6812 | -10/Subcaves | Discovered new exit (range 9) 9546 | -10/Subcaves | Visited Clippyterm 9556 | -10/Subcaves | Learned Factory garrison access intel 10490 | -10/Subcaves | Shifting Twisted Machinery released Sub. Optics 11032 | -10/Subcaves | Entered Materials 11032 | -8/Materials | Evolved 4 slots: Propulsion x1, Weapon x3 11033 | -8/Materials | Identified exit to Factory 11034 | -8/Materials | Loaded intel: 1 garrison access location 11318 | -8/Materials | Build established: Skirmisher 11645 | -8/Materials | Destroyed 8 combat bots 11652 | -8/Materials | Build established: Gunner 11670 | -8/Materials | Lost 4 parts (1p1n2w) 12035 | -8/Materials | Identified exit to Garrison 12052 | -8/Materials | Garrison activated, responded to threat 12073 | -8/Materials | Central database locked down 12119 | -8/Materials | Build established: Scavenger-Gunner 12456 | -8/Materials | Repaired Autogun+ 12501 | -8/Materials | Repaired Gauss Rifle 13904 | -8/Materials | Discovered exit to Factory (range 11) 14658 | -8/Materials | Entered Garrison 14706 | -8/Garrison | Triggered checkpoint 14815 | -8/Garrison | Triggered checkpoint 14942 | -8/Garrison | Triggered checkpoint 15068 | -8/Garrison | Destroyed 9 combat bots 15220 | -8/Garrison | Discovered new exit (range 13) 15238 | -8/Garrison | Installed Relay Interface Framework 15529 | -8/Garrison | Triggered checkpoint 15675 | -8/Garrison | Discovered new exit (range 7) 15720 | -8/Garrison | Triggered checkpoint 15799 | -8/Garrison | Build established: Gunner 15813 | -8/Garrison | Expanded RIF knowledge: Alert ID Control 15840 | -8/Garrison | Garrison Relay disabled 15980 | -8/Garrison | Triggered checkpoint 16080 | -8/Garrison | Discovered new exit (range 10) 16124 | -8/Garrison | Triggered checkpoint 16360 | -8/Garrison | Garrison Relay disabled 16378 | -8/Garrison | Garrison Relay disabled 16496 | -8/Garrison | Entered Materials 16896 | -8/Materials | First assault squad dispatched 17629 | -8/Materials | Discovered exit to Factory (range 10) 17937 | -8/Materials | Discovered exit to Factory (range 11) 17980 | -8/Materials | Core integrity fell below 50% 17987 | -8/Materials | Identified exit to Garrison 17993 | -8/Materials | Entered Garrison 18269 | -8/Garrison | Destroyed 7 combat bots 18276 | -8/Garrison | Expanded RIF knowledge: Program Shield 18330 | -8/Garrison | Garrison Relay disabled 18451 | -8/Garrison | Triggered checkpoint 18485 | -8/Garrison | Destroyed 8 combat bots 18500 | -8/Garrison | Lost 3 parts (1p2w) 18587 | -8/Garrison | Triggered checkpoint 18700 | -8/Garrison | Discovered exit to Factory (range 8) 18731 | -8/Garrison | Build established: Bothacker-Gunner 18777 | -8/Garrison | Triggered checkpoint 18947 | -8/Garrison | Triggered checkpoint 19042 | -8/Garrison | Discovered exit to Factory (range 12) 19155 | -8/Garrison | Triggered checkpoint 19315 | -8/Garrison | Discovered exit to Factory (range 11) 19334 | -8/Garrison | Expanded RIF knowledge: Hotswap 19363 | -8/Garrison | Entered Factory 19363 | -7/Factory | Evolved 2 slots: Utility x1, Weapon x1 19364 | -7/Factory | Loaded intel: 4 garrison access locations 19366 | -7/Factory | Attached Arachnoskeleton, gained temporary slots: Propulsion x3 19372 | -7/Factory | Identified 1B-0RG's Assimilator 19437 | -7/Factory | Assimilating Trooper 4a into Collective. 19451 | -7/Factory | Assimilating Trooper 4b into Collective. 19512 | -7/Factory | Assimilating Trooper 4c into Collective. 19517 | -7/Factory | Assimilating Trooper 4d into Collective. 19523 | -7/Factory | Assimilating Trooper 4e into Collective. 19659 | -7/Factory | Build established: Bothacker-Mutant 19763 | -7/Factory | First assault squad dispatched 20159 | -7/Factory | Assimilating Fighter 4a into Collective. 20166 | -7/Factory | Assimilating Trooper 4f into Collective. 20171 | -7/Factory | Assimilating Soldier 4a into Collective. 20178 | -7/Factory | Assimilating Trooper 4g into Collective. 20259 | -7/Factory | Cargo convoy interrupted 20259 | -7/Factory | Assimilating Commando 4a into Collective. 20264 | -7/Factory | Assimilating Marksman 4a into Collective. 20271 | -7/Factory | Assimilating Marksman 4b into Collective. 20278 | -7/Factory | Assimilating Marksman 4c into Collective. 20307 | -7/Factory | Lost 5 allies 20370 | -7/Factory | Assimilating Trooper 4h into Collective. 20379 | -7/Factory | Assimilating Fighter 4b into Collective. 20384 | -7/Factory | Core integrity fell below 50% 20384 | -7/Factory | Assimilating Fighter 4c into Collective. 20394 | -7/Factory | Garrison activated, responded to threat 20665 | -7/Factory | Assimilating Smith 4a into Collective. 20689 | -7/Factory | Discovered new exit (range 16) 20737 | -7/Factory | Assimilating Guardian 4a into Collective. 20799 | -7/Factory | Assimilating Trooper 4i into Collective. 20811 | -7/Factory | Found Rocket Array 20822 | -7/Factory | Lost 3 allies 20877 | -7/Factory | Assimilating Trooper 4j into Collective. 20882 | -7/Factory | Assimilating Trooper 4k into Collective. 21106 | -7/Factory | Assimilating Soldier 4b into Collective. 21230 | -7/Factory | Identified exit to Garrison 21230 | -7/Factory | Entered Garrison 21230 | -7/Garrison | Accompanied by 3 allies 21294 | -7/Garrison | Triggered checkpoint 21321 | -7/Garrison | Expanded RIF knowledge: Autooverride 21388 | -7/Garrison | Triggered checkpoint 21397 | -7/Garrison | Assimilating Guardian 4b into Collective. 21456 | -7/Garrison | Triggered checkpoint 21563 | -7/Garrison | Discovered new exit (range 12) 21610 | -7/Garrison | Found embedded Infiltrators 21642 | -7/Garrison | Triggered checkpoint 22042 | -7/Garrison | Triggered checkpoint 22142 | -7/Garrison | Triggered checkpoint 22188 | -7/Garrison | Discovered new exit (range 14) 22300 | -7/Garrison | Triggered checkpoint 22324 | -7/Garrison | Triggered checkpoint 22462 | -7/Garrison | Triggered checkpoint 22476 | -7/Garrison | Assimilating Trooper 4l into Collective. 22528 | -7/Garrison | Discovered new exit (range 12) 22567 | -7/Garrison | Entered Factory 22567 | -6/Factory | Accompanied by 7 allies 22567 | -6/Factory | Evolved 2 slots: Utility x2 22705 | -6/Factory | Identified exit to Lower Caves 22716 | -6/Factory | Assimilating Soldier 5a into Collective. 22799 | -6/Factory | Assimilating Slayer 5a into Collective. 22917 | -6/Factory | First assault squad dispatched 22947 | -6/Factory | Identified exit to Garrison 22950 | -6/Factory | Entered Garrison 22950 | -6/Garrison | Accompanied by 5 allies 23020 | -6/Garrison | Triggered checkpoint 23024 | -6/Garrison | Assimilating Soldier 5b into Collective. 23032 | -6/Garrison | Assimilating Soldier 5c into Collective. 23132 | -6/Garrison | Triggered checkpoint 23132 | -6/Garrison | Triggered checkpoint 23141 | -6/Garrison | Assimilating Soldier 5d into Collective. 23180 | -6/Garrison | Triggered checkpoint 23192 | -6/Garrison | Triggered checkpoint 23235 | -6/Garrison | Lost 3 allies 23266 | -6/Garrison | Triggered checkpoint 23274 | -6/Garrison | Assimilating Soldier 5e into Collective. 23316 | -6/Garrison | Triggered checkpoint 23357 | -6/Garrison | Expanded RIF knowledge: Code Merge 23390 | -6/Garrison | Rescued a captive Derelict 23412 | -6/Garrison | Garrison Relay disabled 23602 | -6/Garrison | Assimilating Hacker 5a into Collective. 23655 | -6/Garrison | Discovered new exit (range 14) 23661 | -6/Garrison | Expanded RIF knowledge: Command Fork 23676 | -6/Garrison | Triggered checkpoint 23752 | -6/Garrison | Entered Factory 23752 | -5/Factory | Accompanied by 7 allies 23752 | -5/Factory | Evolved 2 slots: Utility x2 24052 | -5/Factory | First assault squad dispatched 24062 | -5/Factory | Discovered new exit (range 3) 24120 | -5/Factory | Sucked down chute 24120 | -5/Factory | Entered Waste 24121 | -5/Waste | Joined by Warlord forces that had cleared the area 24185 | -5/Waste | 1 allies followed down the chute 24210 | -5/Waste | 6 allies followed down the chute 24322 | -5/Waste | Found Broken Adv. Powered Armor 24529 | -5/Waste | Discovered new exit (range 15) 24611 | -5/Waste | Assimilating 9W-6DB(h) into Collective. 24651 | -5/Waste | Assimilating 6P-1JQ(g) into Collective. 24841 | -5/Waste | Murdered 3 allies 24965 | -5/Waste | Entered Factory 24965 | -5/Factory | Accompanied by 26 allies 25283 | -5/Factory | Lost 5 allies 25345 | -5/Factory | Discovered new exit (range 6) 25354 | -5/Factory | Discovered new exit (range 15) 25502 | -5/Factory | P-70 Sage assimilated allied 87-ZE8(b) 25600 | -5/Factory | Identified exit to Garrison 25818 | -5/Factory | Entered Garrison 25818 | -5/Garrison | Accompanied by 15 allies 25878 | -5/Garrison | Expanded RIF knowledge: Autoassimilate 25972 | -5/Garrison | Discovered new exit (range 11) 26036 | -5/Garrison | Entered Factory 26036 | -5/Factory | Accompanied by 15 allies 26176 | -5/Factory | Assimilating Sentinel 6a into Collective. 26317 | -5/Factory | Identified exit to Garrison 26325 | -5/Factory | Entered Garrison 26325 | -5/Garrison | Accompanied by 10 allies 26390 | -5/Garrison | Found Relay Coupler [Proto] 26438 | -5/Garrison | Triggered checkpoint 26461 | -5/Garrison | Triggered checkpoint 26475 | -5/Garrison | Spotted B-75 Beast 26501 | -5/Garrison | Allies destroyed B-75 Beast 26526 | -5/Garrison | Lost 6 allies 26535 | -5/Garrison | Assimilating Soldier 6a into Collective. 26539 | -5/Garrison | Assimilating Soldier 6b into Collective. 26646 | -5/Garrison | Expanded RIF knowledge: Signal Jamming 26661 | -5/Garrison | Triggered checkpoint 26665 | -5/Garrison | Assimilating Soldier 6c into Collective. 26669 | -5/Garrison | Discovered new exit (range 14) 26697 | -5/Garrison | Build established: Botlord-Mutant 26738 | -5/Garrison | Entered Factory 26738 | -4/Factory | Accompanied by 7 allies 26738 | -4/Factory | Evolved 2 slots: Power x1, Utility x1 26829 | -4/Factory | Allies destroyed B-86 Titan 26918 | -4/Factory | Assimilating Engineer 7a into Collective. 27046 | -4/Factory | Assimilating Sage 7a into Collective. 27065 | -4/Factory | Assimilating Veteran 7a into Collective. 27082 | -4/Factory | Assimilating Veteran 7b into Collective. 27112 | -4/Factory | Lost 4 allies 27199 | -4/Factory | Assimilating Sage 7b into Collective. 27300 | -4/Factory | Sucked down chute 27300 | -4/Factory | Entered Waste 27307 | -4/Waste | Spotted C-40 Crusher 27313 | -4/Waste | Destroyed C-40 Crusher 27357 | -4/Waste | Spotted C-40 Crusher 27364 | -4/Waste | Allies destroyed C-40 Crusher 27373 | -4/Waste | Spotted C-40 Crusher 27380 | -4/Waste | Destroyed C-40 Crusher 27391 | -4/Waste | Spotted C-40 Crusher 27395 | -4/Waste | 11 allies followed down the chute 27399 | -4/Waste | Destroyed C-40 Crusher 27407 | -4/Waste | Spotted C-40 Crusher 27408 | -4/Waste | Spotted C-40 Crusher 27411 | -4/Waste | Destroyed C-40 Crusher 27411 | -4/Waste | Destroyed C-40 Crusher 27439 | -4/Waste | Discovered new exit (range 12) 27588 | -4/Waste | Entered Factory 27588 | -4/Factory | Accompanied by 4 allies 27909 | -4/Factory | Identified exit to Upper Caves 27909 | -4/Factory | Identified exit to Extension 27909 | -4/Factory | Identified exit to Armory 28043 | -4/Factory | Entered Extension 28043 | -4/Extension | Accompanied by 2 allies 28159 | -4/Extension | Rescued a captive Derelict 28166 | -4/Extension | Rescued a captive Derelict 28184 | -4/Extension | Assimilating Director 7a into Collective. 28355 | -4/Extension | Rescued A7 28370 | -4/Extension | Assimilating 1P-68L(h) into Collective. 28377 | -4/Extension | Assimilating 8Z-A4K(h) into Collective. 28747 | -4/Extension | Spotted B-86 Titan 28765 | -4/Extension | Allies destroyed B-86 Titan 28765 | -4/Extension | Spotted B-86 Titan 28781 | -4/Extension | Allies destroyed B-86 Titan 28871 | -4/Extension | Assimilating Sentinel 7b into Collective. 29144 | -4/Extension | Assimilating Veteran 7c into Collective. 29195 | -4/Extension | Rescued a captive Derelict 29205 | -4/Extension | Rescued a captive Derelict 29271 | -4/Extension | Discovered new exit (range 10) 29273 | -4/Extension | Discovered new exit (range 6) 30047 | -4/Extension | Entered Cetus 30047 | -4/Cetus | Accompanied by 22 allies (A7) 30052 | -4/Cetus | Acquired a Cetus Manufacturing Module code from A7 30074 | -4/Cetus | Spotted Cetus Guard 30074 | -4/Cetus | Spotted Cetus Guard 30076 | -4/Cetus | Spotted Cetus Guard 30076 | -4/Cetus | Spotted Cetus Guard 30080 | -4/Cetus | Allies destroyed Cetus Guard 30082 | -4/Cetus | Allies destroyed Cetus Guard 30085 | -4/Cetus | Allies destroyed Cetus Guard 30087 | -4/Cetus | Allies destroyed Cetus Guard 30106 | -4/Cetus | Lost 3 allies 30178 | -4/Cetus | Started Cetus Manufacturing Module 30195 | -4/Cetus | Escorted A7 to Cetus Mainframe 30203 | -4/Cetus | Manufactured an Enhanced Grunt 30217 | -4/Cetus | Discovered new exit (range 15) 30228 | -4/Cetus | Manufactured an Enhanced Grunt 30253 | -4/Cetus | Manufactured an Enhanced Grunt 30264 | -4/Cetus | Allies destroyed Cetus Guard 30264 | -4/Cetus | Spotted Cetus Guard 30268 | -4/Cetus | Discovered new exit (range 25) 30277 | -4/Cetus | Allies destroyed Cetus Guard 30278 | -4/Cetus | Manufactured an Enhanced Grunt 30281 | -4/Cetus | Allies destroyed Cetus Guard 30284 | -4/Cetus | Allies destroyed Cetus Guard 30303 | -4/Cetus | Manufactured an Enhanced Grunt 30307 | -4/Cetus | Met Revision 17 30321 | -4/Cetus | Lost 4 allies 30619 | -4/Cetus | Entered Archives 30619 | -4/Archives | Accompanied by 20 allies (A7) 30624 | -4/Archives | Received a hacking code to weaken MAIN.C 30692 | -4/Archives | Discovered new exit (range 10) 30749 | -4/Archives | Met Zhirov 30755 | -4/Archives | Reinforcements dispatched to Archives 30758 | -4/Archives | Discovered new exit (range 16) 30800 | -4/Archives | Reinforcements dispatched to Archives 30802 | -4/Archives | Zhirov warped through subspace 30816 | -4/Archives | Entered Hub_04(d) 30816 | -4/Hub_04(d) | Accompanied by 16 allies 30830 | -4/Hub_04(d) | Assimilating Enhanced Grunt into Collective. 30839 | -4/Hub_04(d) | Assimilating Enhanced Grunt into Collective. 30923 | -4/Hub_04(d) | Discovered new exit (range 24) 30970 | -4/Hub_04(d) | Discovered new exit (range 22) 31013 | -4/Hub_04(d) | Network Hub disabled 31024 | -4/Hub_04(d) | Spotted Lightning 31055 | -4/Hub_04(d) | Spotted Lightning 31059 | -4/Hub_04(d) | Spotted Lightning 31060 | -4/Hub_04(d) | Spotted Lightning 31094 | -4/Hub_04(d) | Assimilating Lightning into Collective. 31112 | -4/Hub_04(d) | Allies destroyed Lightning 31123 | -4/Hub_04(d) | Assimilating Lightning into Collective. 31153 | -4/Hub_04(d) | Lost 13 allies 31225 | -4/Hub_04(d) | Spotted Lightning 31225 | -4/Hub_04(d) | Spotted Lightning 31227 | -4/Hub_04(d) | Spotted Lightning 31243 | -4/Hub_04(d) | Allies destroyed Lightning 31246 | -4/Hub_04(d) | Assimilating Lightning into Collective. 31251 | -4/Hub_04(d) | Assimilating Lightning into Collective. 31260 | -4/Hub_04(d) | Found Prototype Device 31261 | -4/Hub_04(d) | Identified Exp. EM Shield 31266 | -4/Hub_04(d) | Found Prototype Processor 31266 | -4/Hub_04(d) | Identified Exp. Targeting Computer 31343 | -4/Hub_04(d) | Network Hub disabled 31393 | -4/Hub_04(d) | Spotted Lightning 31394 | -4/Hub_04(d) | Spotted Lightning 31395 | -4/Hub_04(d) | Spotted Lightning 31408 | -4/Hub_04(d) | Allies destroyed Lightning 31413 | -4/Hub_04(d) | Network Hub disabled 31415 | -4/Hub_04(d) | Allies destroyed Lightning 31428 | -4/Hub_04(d) | Allies destroyed Lightning 31494 | -4/Hub_04(d) | Discovered new exit (range 25) 31498 | -4/Hub_04(d) | Allies destroyed Borg Lightning 31652 | -4/Hub_04(d) | Found Prototype Device 31653 | -4/Hub_04(d) | Identified Exp. Thermal Shield 31724 | -4/Hub_04(d) | Found Prototype Processor 31724 | -4/Hub_04(d) | Identified Exp. Melee Analysis Suite 31746 | -4/Hub_04(d) | Entered Research 31746 | -3/Research | Accompanied by 3 allies 31746 | -3/Research | Evolved 2 slots: Utility x2 31946 | -3/Research | Revision forces began assault on 0b10 32025 | -3/Research | Assimilating Master 8a into Collective. 32066 | -3/Research | Met up with Revision 17++ 32097 | -3/Research | Discovered new exit (range 13) 32115 | -3/Research | Identified exit to Research 32131 | -3/Research | Discovered exit to Research (range 24) 32163 | -3/Research | Build established: Botlord-Assassin 32212 | -3/Research | Discovered exit to Research (range 9) 32384 | -3/Research | Identified exit to Testing 32446 | -3/Research | Research terminal network offline 32533 | -3/Research | Entered Testing 32533 | -3/Testing | Accompanied by 4 allies 32548 | -3/Testing | Found Prototype Device 32548 | -3/Testing | Identified Exp. Hardlight Generator 32942 | -3/Testing | Found Prototype Launcher 32964 | -3/Testing | Identified Tactical Quantum Warhead 33325 | -3/Testing | Found Prototype Hackware 33344 | -3/Testing | Identified System Mapper 33433 | -3/Testing | Found Prototype Energy Cannon 33452 | -3/Testing | Identified Null Cannon 33490 | -3/Testing | Found Prototype Processor 33494 | -3/Testing | Found Prototype Hackware 33532 | -3/Testing | Identified Spectral Analyzer 33538 | -3/Testing | Identified Exp. Hacking Suite 33627 | -3/Testing | Found Prototype Launcher 33640 | -3/Testing | Identified Hellfire Missile Launcher 33641 | -3/Testing | Found Hellfire Missile Launcher 33705 | -3/Testing | Found Prototype Protection 33705 | -3/Testing | Identified Lgt. Regenerative Plating 33709 | -3/Testing | Found Prototype Protection 33709 | -3/Testing | Identified Hvy. Regenerative Plating 33714 | -3/Testing | Found Prototype Protection 33714 | -3/Testing | Identified SHELL Armor 33744 | -3/Testing | Discovered exit to Research (range 18) 33785 | -3/Testing | Found Prototype Device 33786 | -3/Testing | Identified AEGIS Remote Shield 33821 | -3/Testing | Entered Research 33821 | -2/Research | Accompanied by 4 allies 33821 | -2/Research | Evolved 2 slots: Utility x2 33831 | -2/Research | Identified exit to Quarantine 33831 | -2/Research | Watched by a mysterious "MATRIX" hacker. 34019 | -2/Research | Central database locked down 34201 | -2/Research | Allies destroyed B-90 Cyclops 34211 | -2/Research | Entered Quarantine 34211 | -2/Quarantine | Accompanied by 4 allies 34254 | -2/Quarantine | Found Alien Artifact 34373 | -2/Quarantine | Found Alien Energy Cannon 34419 | -2/Quarantine | Found Alien Artifact 34527 | -2/Quarantine | Cryocooling Duct disabled 34542 | -2/Quarantine | Ambient heat levels rising (+20) 34542 | -2/Quarantine | Non-combat units ordered to evacuate 34804 | -2/Quarantine | Spotted Fortress 34814 | -2/Quarantine | Allies destroyed Fortress 34910 | -2/Quarantine | Discovered new exit (range 5) 34910 | -2/Quarantine | Discovered new exit (range 6) 34913 | -2/Quarantine | Identified exit to Protoforge 34917 | -2/Quarantine | Identified exit to Section 7 34922 | -2/Quarantine | Entered Protoforge 34922 | -2/Protoforge | Accompanied by 3 allies 35004 | -2/Protoforge | Superfortress began startup sequence 35023 | -2/Protoforge | Discovered new exit (range 16) 35067 | -2/Protoforge | Additional patrols dispatched to research labs 35110 | -2/Protoforge | Found Prototype Storage 35119 | -2/Protoforge | Found Prototype Storage 35172 | -2/Protoforge | Found Prototype Storage 35196 | -2/Protoforge | Identified Cep. Antigrav Storage Unit 35201 | -2/Protoforge | Found Prototype Storage 35203 | -2/Protoforge | Found Prototype Storage 35205 | -2/Protoforge | Found Prototype Storage 35209 | -2/Protoforge | Identified Cep. NT7 Matterbank (x2) 35210 | -2/Protoforge | Identified Cep. Chromion Battery (x3) 35210 | -2/Protoforge | Found Prototype Device 35213 | -2/Protoforge | Found Prototype Device 35217 | -2/Protoforge | Found Cep. NT7 Matterbank 35231 | -2/Protoforge | Found Cep. NT7 Matterbank 35236 | -2/Protoforge | Found Prototype Device 35238 | -2/Protoforge | Found Cep. Chromion Battery 35255 | -2/Protoforge | Spotted Immortal 35255 | -2/Protoforge | Spotted Immortal 35261 | -2/Protoforge | Identified Cep. Matter Streamer (x3) 35279 | -2/Protoforge | Allies destroyed Immortal 35290 | -2/Protoforge | Assimilating Immortal into Collective. 35328 | -2/Protoforge | Spotted Decapitator 35328 | -2/Protoforge | Spotted Decapitator 35328 | -2/Protoforge | Spotted Decapitator 35334 | -2/Protoforge | Destroyed Decapitator 35336 | -2/Protoforge | Spotted Immortal 35336 | -2/Protoforge | Spotted Immortal 35339 | -2/Protoforge | Spotted Immortal 35340 | -2/Protoforge | Allies destroyed Decapitator 35343 | -2/Protoforge | Autoassimilated Immortal with RIF 35348 | -2/Protoforge | Destroyed Decapitator 35349 | -2/Protoforge | Allies destroyed Immortal 35362 | -2/Protoforge | Allies destroyed Immortal 35368 | -2/Protoforge | Build established: Hacker-Mutant 35385 | -2/Protoforge | Found Exp. Phase Shifter 35388 | -2/Protoforge | Found Prototype Device 35389 | -2/Protoforge | Identified Exp. Cloaking Device 35417 | -2/Protoforge | Found Cep. Antimissile System 35425 | -2/Protoforge | Found Prototype Device 35534 | -2/Protoforge | Assimilating Warden 9a into Collective. 35538 | -2/Protoforge | Assimilating Warden 9b into Collective. 35564 | -2/Protoforge | Found Cep. Miniperforator 35579 | -2/Protoforge | Found Cep. Heavy Railcannon 35601 | -2/Protoforge | Found Prototype Energy Cannon 35602 | -2/Protoforge | Identified Cep. Plasma Driver 35606 | -2/Protoforge | Found Cep. Plasma Driver 35616 | -2/Protoforge | Found Prototype Slashing Weapon 35622 | -2/Protoforge | Found Cep. Plasma Driver 35739 | -2/Protoforge | Identified Cep. Deflector Sword 35766 | -2/Protoforge | Found Cep. Helical Railcannon 35953 | -2/Protoforge | Spotted Decapitator 35956 | -2/Protoforge | Spotted Decapitator 35956 | -2/Protoforge | Spotted Decapitator 35956 | -2/Protoforge | Spotted V300-s 35960 | -2/Protoforge | Allies destroyed Decapitator 35965 | -2/Protoforge | Allies destroyed Decapitator 35966 | -2/Protoforge | Allies destroyed Decapitator 35969 | -2/Protoforge | Spotted V089-x 35974 | -2/Protoforge | Allies destroyed V300-s 35978 | -2/Protoforge | Allies destroyed V089-x 35998 | -2/Protoforge | Found Prototype Device 36002 | -2/Protoforge | Found Prototype Processor 36011 | -2/Protoforge | Found Prototype Processor 36012 | -2/Protoforge | Identified Cep. Melee Reflex Suite 36016 | -2/Protoforge | Identified Thermal Barrier 36034 | -2/Protoforge | Identified Crosscalibrator 36045 | -2/Protoforge | Found Prototype Device 36049 | -2/Protoforge | Found Prototype Protection 36053 | -2/Protoforge | Found Prototype Device 36091 | -2/Protoforge | Identified Exp. Force Field 36101 | -2/Protoforge | Identified Exp. EM Disruption Field 36134 | -2/Protoforge | Identified Cep. Core Shell 36212 | -2/Protoforge | Found Cep. RG22 Armor 36239 | -2/Protoforge | Identified Exp. Armor Integrity Analyzer 36244 | -2/Protoforge | Spotted Decapitator 36244 | -2/Protoforge | Spotted Decapitator 36269 | -2/Protoforge | Allies destroyed Decapitator 36274 | -2/Protoforge | Allies destroyed Decapitator 36325 | -2/Protoforge | Spotted V272-e 36335 | -2/Protoforge | Allies destroyed V272-e 36340 | -2/Protoforge | Found Cep. Smart ZDS 36374 | -2/Protoforge | Found Prototype Launcher 36382 | -2/Protoforge | Identified Cep. Rapid Grenade Launcher 36456 | -2/Protoforge | Spotted Decapitator 36456 | -2/Protoforge | Spotted Decapitator 36456 | -2/Protoforge | Spotted Decapitator 36456 | -2/Protoforge | Spotted Decapitator 36457 | -2/Protoforge | Autoassimilated Decapitator with RIF 36464 | -2/Protoforge | Destroyed Decapitator 36469 | -2/Protoforge | Allies destroyed Decapitator 36480 | -2/Protoforge | Allies destroyed Decapitator 36497 | -2/Protoforge | Spotted V736-p 36500 | -2/Protoforge | Destroyed V736-p 36535 | -2/Protoforge | Found Cep. Network Penetrator 36624 | -2/Protoforge | Spotted V037-y 36624 | -2/Protoforge | Spotted V915-u 36636 | -2/Protoforge | Spotted V833-y 36648 | -2/Protoforge | Allies destroyed V037-y 36661 | -2/Protoforge | Allies destroyed V833-y 36662 | -2/Protoforge | Allies destroyed V915-u 36673 | -2/Protoforge | Found Prototype Processor 36673 | -2/Protoforge | Identified Exp. Target Analyzer 36676 | -2/Protoforge | Found Prototype Device 36676 | -2/Protoforge | Identified Exp. Focal Shield 36681 | -2/Protoforge | Found Prototype Device 36681 | -2/Protoforge | Identified Exp. Shield Generator 36686 | -2/Protoforge | Found Prototype Device 36686 | -2/Protoforge | Identified Cep. Recoil Nullifier 36704 | -2/Protoforge | Spotted Immortal 36705 | -2/Protoforge | Spotted Immortal 36706 | -2/Protoforge | Autoassimilated Immortal with RIF 36741 | -2/Protoforge | Allies destroyed Immortal 36966 | -2/Protoforge | Build established: Mutant 37063 | -2/Protoforge | Found Prototype Device 37096 | -2/Protoforge | Found Cep. Hypertargeting System 37100 | -2/Protoforge | Found Prototype Device 37121 | -2/Protoforge | Identified Cep. Networked Targeting System (x2) 37152 | -2/Protoforge | Found Cep. Networked Targeting System 37264 | -2/Protoforge | Allies destroyed AP7-3 37282 | -2/Protoforge | Allies destroyed AP7-3 37354 | -2/Protoforge | Found Prototype Device 37368 | -2/Protoforge | Found Faulty Cep. Thermoelectric Network 37369 | -2/Protoforge | Identified Cep. Cloak Mesh 37374 | -2/Protoforge | Found Faulty Cep. Thermoelectric Network 37382 | -2/Protoforge | Found Prototype Energy Cannon 37385 | -2/Protoforge | Identified Cld. Directed Potential Cannon 37692 | -2/Protoforge | Found Alien Artifact 37692 | -2/Protoforge | Identified Transdimensional Reconstructor 37692 | -2/Protoforge | Warped through subspace 37788 | -2/Protoforge | Found Alien Artifact 37788 | -2/Protoforge | Identified Cep. Nanofilaments [Endoweave] 37788 | -2/Protoforge | Installed Cep. Nanofilaments [Endoweave], 5 resistances modified: KI +10%, TH +10%, EX -50%, S -20%, P +20% 37812 | -2/Protoforge | Found Cep. Navigation Harness 38257 | -2/Protoforge | Spotted Hotshot 38265 | -2/Protoforge | Spotted Hotshot 38271 | -2/Protoforge | Destroyed Hotshot 38276 | -2/Protoforge | Destroyed Hotshot 38290 | -2/Protoforge | Scanned by Researcher 38291 | -2/Protoforge | Spotted Immortal 38291 | -2/Protoforge | Spotted Striker 38298 | -2/Protoforge | Destroyed Striker 38303 | -2/Protoforge | Spotted Hotshot 38303 | -2/Protoforge | Destroyed Immortal 38318 | -2/Protoforge | Spotted Striker 38327 | -2/Protoforge | Destroyed Borg Lightning 38334 | -2/Protoforge | Spotted Striker 38340 | -2/Protoforge | Spotted Hotshot 38341 | -2/Protoforge | Autoassimilated Hotshot with RIF 38342 | -2/Protoforge | Destroyed Hotshot 38348 | -2/Protoforge | Spotted Striker 38356 | -2/Protoforge | Spotted Decapitator 38357 | -2/Protoforge | Autoassimilated Decapitator with RIF 38357 | -2/Protoforge | High security lockdown imminent 38357 | -2/Protoforge | Destroyed Superfortress 38357 | -2/Protoforge | Destroyed Decapitator 38360 | -2/Protoforge | Destroyed Striker 38381 | -2/Protoforge | Destroyed 21 combat bots 38388 | -2/Protoforge | Lost 6 allies 38437 | -2/Protoforge | High security lockdown engaged 38541 | -2/Protoforge | Build established: Executioner 38556 | -2/Protoforge | Found Cep. Antigrav Storage Unit 38572 | -2/Protoforge | Found Cep. Chromion Battery 38687 | -2/Protoforge | Spotted Immortal 38687 | -2/Protoforge | Spotted Immortal 38689 | -2/Protoforge | Spotted Immortal 38690 | -2/Protoforge | Spotted Immortal 38690 | -2/Protoforge | Spotted Immortal 38692 | -2/Protoforge | Spotted Immortal 38695 | -2/Protoforge | Entered Access 38695 | -1/Access | Evolved 2 slots: Power x1, Utility x1 38725 | -1/Access | Lost 4 parts (1u3w) 38792 | -1/Access | Spotted Executioner 38799 | -1/Access | Spotted Executioner 38945 | -1/Access | First assault squad dispatched 38971 | -1/Access | Lost 3 parts (2p1w) 39014 | -1/Access | Identified Subatomic Replicator 39014 | -1/Access | Used Subatomic Replicator to replicate Cep. Helical Railcannon 39141 | -1/Access | Found Quantum Capacitor 39149 | -1/Access | Spotted Executioner 39153 | -1/Access | Spotted Executioner 39157 | -1/Access | Destroyed Executioner 39163 | -1/Access | Destroyed Executioner 39231 | -1/Access | Spotted Executioner 39233 | -1/Access | Spotted Executioner 39281 | -1/Access | Lost 11 parts (2p1n3u5w) 39347 | -1/Access | Found Prototype Hackware 39347 | -1/Access | Identified Exp. System Shield 39406 | -1/Access | Identified exit to Surface 39408 | -1/Access | Core integrity fell below 50% 39411 | -1/Access | Spotted B-99 Colossus 39423 | -1/Access | Core integrity fell below 20% 39427 | -1/Access | Identified Core Cannon 39430 | -1/Access | Destroyed by C-57 Dissector with Dual-blade Saw Last Messages --------------- 39413_ Field Propulsion Array destroyed. 39413_ Knocked back. 39414_ Penetrated by Slug. 39414_ Slug penetrates Wall. 39414_ Penetrated by Slug. 39414_ Slug penetrates Wall. 39415_ Exp. System Shield severed. 39415_ Relay Coupler [Proto] destroyed. 39416_ ALERT: Potential suspicious activity detected, Q-Series report to Access Zone 6E. 39416_ Cep. Navigation Harness destroyed. 39419_ Slug penetrates K-01 Serf. 39419_ Slug penetrates C-57 Dissector. 39419_ Slug penetrates Wall. 39419_ Penetrated by Slug. 39420_ Adv. Signal Interpreter severed. 39421_ System corrupted: Cep. Phasing Heat Sink rejected. 39427_ Identified Core Cannon. 39428_ Dropped Core Cannon. 39428_ Imp. Plasma Cutter destroyed. Map ----- +----------------------------------------------------+ | ?????????????????????????????????????????????????? | | ?????????????????????????????????????????????????? | | ?????????????????????????????????????????????????? | | ?????????????????????????????????????????????????? | | ?????????????????????????????????????????????????? | | ?????????????????????????????????????????????????? | | ?????????????????????????????????????????????????? | | ?????????????????????????????????????????????????? | | ?????????????????????????????????????????????????? | | #####+######+#???????????????????????????????????? | | == ???????????????????????????????????? | | = ????????????????????????????????????? | | ##?????????????????????????????????????????? | | ! !"#?????????????????????????????????????????? | | % #??????????????????????????????????????????? | | #??????????????????????????????????????????? | | ##############################?????????????? | | ?????????????? | | ! ?????????????? | | ####"##+############ ""#??????????????????? | | ????? ?????????# s ""#??????????????????? | | ???# ???????# s ""#??????????????????? | | ???# """ #??????# s T#??????????????????? | | ???# = """ #??????# s ""#??????????????????? | | ???# R" #??????# ccc ""#??????????????????? | | ???# """ #??????# ]@ ""#??????????????????? | | ???# "" #??????""""""""""""??????????????????? | | ???# ?? #????????????????????????????????????? | | ???# ?????#????????????????????????????????????? | | ???####??????????????????????????????????????????? | | ?????????????????????????????????????????????????? | | ????????????????????????